Workbook

Sheet Title
B2: File Name | C2: : | D2: DDR3_Power_Calc.XLSM
B3: Revision | C3: : | D3: 1.02
B4: Date | C4: : | D4: 2020-11-02
B6: E-Mail | C6: : | D6: dramsupport@micron.com
B7: Company | C7: : | D7: Micron Technology, Inc.
B9: Description | C9: : | D9: Calculates the power consumed by a DDR3 and DDR3L SDRAM based on system use parameters and the device data sheet.
B11: Limitations | C11: :
B13: Notes | C13: :
B15: Disclaimer | C15: : | D15: THIS SPREADSHEET IS FOR ESTIMATING PURPOSES ONLY. ANY INFORMATION PROVIDED HEREIN IS PROVIDED "AS IS" AND WITHOUT WARRANTIES OF ANY KIND. MICRON WARRANTS ONLY THAT ITS PRODUCTS COMPLY WITH MICRON'S SPECIFICATION SHEET FOR THE PRODUCT AT THE TIME OF DELIVERY; PROVIDED THAT DEVIATIONS FROM SPECIFICATIONS WHICH DO NOT MATERIALLY AFFECT FORM, FIT OR FUNCTION OF SUCH PRODUCT IN THE SYSTEM AND CONFIGURATION IN OR FOR WHICH IT IS INITIALLY INSTALLED OR QUALIFIED BY CUSTOMER SHALL NOT BE DEEMED TO CONSTITUTE FAILURE TO COMPLY WITH SUCH SPECIFICATIONS.
D16: SEE MICRON'S STANDARD TERMS AND CONDITIONS OF SALE FOR COMPLETE WARRANTY DETAILS.
D19: Copyright © 2007 Micron Semiconductor Products, Inc.
D20: All rights reserved.

Sheet Instructions
A4: Instructions for Use
B5: DDR3 Spec tab (ALL MUST BE VERIFIED FOR A SPECIFIC DRAM DATA SHEET)
C6: Inputs are required for all densities and speed grades that may be chosen.
C7: Enter VDD tolerance range in rows 6–7.
C8: Enter IDD values for the speed grade under investigation in rows 9–26. Note that there are entries for both x4/x8 devices, as well as x16. Also note the two separate entries for IDD3P, depending on the mode register setting.
C9: Timing restrictions in rows 28–36 are entered from the data sheet. These determine the test conditions for the IDD values and restrictions of normal device operation.
B11: DDR3 Config tab (ALL MUST BE ENTERED TO IDENTIFY DRAM TO BE USED FOR POWER CALCULATION)
C12: Row 7 selects which DRAM density.
C13: Row 8 selects the number of DQs.
C14: Row 9 selects the starting speed grade.
C15: Row 10 selects low voltage or nominal.
C16: Row 11 selects whether fast or slow exit is used for power-down exit.
B18: DDR3 Spec tab (ALL MUST BE ENTERED FOR SPECIFIC SYSTEM)
C19: Row 7 is the actual VDD the system is operating at. It is usually set to nominal conditions.
C20: Row 8 is the clock rate the DRAM is operating at. This is one half of the data rate.
C21: Row 9 is the burst length programmed in the mode register. (The model does not calculate power if burst interrupt is utilized.)
C22: Row 10* is the amount of power that is drawn per output while driving read data from itself.
C23: Row 11* is the amount of power that is drawn per output while terminating write data to itself.
C24: Row 12* is the amount of power that is drawn per DQ while terminating read data at different DRAM (two or more loads).
C25: Row 13* is the amount of power that is drawn per DQ while terminating write data at different DRAM (two or more loads).
C26: *These are system-dependent and must be calculated. The value may be approximated with a DC calculation (calculator provided) or more accurately determined using SPICE models.
C27: Row 15 is the time when all banks are in a precharged state. This is the amount of time when no bank has been activated.
C28: Row 16 is the percentage of time that all that banks are precharged when the device is in power-down state. This is the percentage of time when the DRAM is using IDD2P vs. IDD2F.
C29: Row 17 is the percentage of DRAM active time when CKE is LOW and the device is in the power-down state. This is the percentage of active time when the DRAM is using IDD3P current vs. IDD3N.
C30: Row 19 is the average time between ACT commands to the DRAM. Under IDD0 or IDD1 conditions, this would be equal to tRC. If the DRAM is in interleaving bursts, it may be less than tRC. This value is now calculated off of page hit rate. Entering a number here will override the automatic calculation.
C31: Row 21 is the percentage of clocks that data is read from the DRAM. This would be equal to the average read bandwidth divided by peak read bandwidth.
C32: Row 22 is the percentage of clocks that data is written to the DRAM. This would be equal to the average read bandwidth divided by peak read bandwidth.
C33: Row 23 is the page hit rate. 0% means there are no page hits (i.e., one read/write per each activate).
C34: Row 24 is the percentage of clock cycles the DRAM under investigation is terminating read data from another device. It does not include time when a different DRAM on the bus may be terminating data.
C35: Row 25 is the percentage of clock cycles the DRAM under investigation is terminating write data from another device. It does not include time when a different DRAM on the bus may be terminating data.
B37: Power Calcs tab
C38: No inputs are required for this tab. It contains some of the detail calculations that provide information into the Summary tab. It can be used as a reference for further understanding the calculator, or you may jump straight to the Summary page for the final answer.
B40: Summary tab
C41: No inputs are required for this tab. It contains a summary of the power used by the DRAM. The power is broken out between: — Power to read/write data to and from the DRAM — Power to activate the rows — Background power for standby modes and refresh

Sheet DDR3 Spec
D4: 1Gb | O4: 2Gb | Z4: 4Gb | AK4: 8Gb | AV4: 16Gb
A5: Parameter | B5: Condition | C5: Condition | D5: -093E | E5: -093 | F5: -107E | G5: -107 | H5: -125E | I5: -125 | J5: -15E | K5: -187E | L5: -187 | M5: -25 | O5: -093E | P5: -093 | Q5: -107E | R5: -107 | S5: -125E | T5: -125 | U5: -15E | V5: -187E | W5: -187 | X5: -25 | Z5: -093E | AA5: -093 | AB5: -107E | AC5: -107 | AD5: -125E | AE5: -125 | AF5: -15E | AG5: -187E | AH5: -187 | AI5: -25 | AK5: -093E | AL5: -093 | AM5: -107E | AN5: -107 | AO5: -125E | AP5: -125 | AQ5: -15E | AR5: -187E | AS5: -187 | AT5: -25 | AV5: -093E | AW5: -093 | AX5: -107E | AY5: -107 | AZ5: -125E | BA5: -125 | BB5: -15E | BC5: -187E | BD5: -187 | BE5: -25
B6: Maximum VDD | D6: 1.435 | E6: 1.435 | F6: 1.435 | G6: 1.435 | H6: 1.435 | I6: 1.435 | J6: 1.435 | K6: 1.435 | L6: 1.435 | M6: 1.435 | O6: 1.435 | P6: 1.435 | Q6: 1.435 | R6: 1.435 | S6: 1.435 | T6: 1.435 | U6: 1.435 | V6: 1.435 | W6: 1.435 | X6: 1.435 | Z6: 1.435 | AA6: 1.435 | AB6: 1.435 | AC6: 1.435 | AD6: 1.435 | AE6: 1.435 | AF6: 1.435 | AG6: 1.435 | AH6: 1.435 | AI6: 1.435 | AK6: 1.435 | AL6: 1.435 | AM6: 1.435 | AN6: 1.435 | AO6: 1.435 | AP6: 1.435 | AQ6: 1.435 | AR6: 1.435 | AS6: 1.435 | AT6: 1.435 | AV6: 1.435 | AW6: 1.435 | AX6: 1.435 | AY6: 1.435 | AZ6: 1.435 | BA6: 1.435 | BB6: 1.435 | BC6: 1.435 | BD6: 1.435 | BE6: 1.435 | BG6: V
B7: Minimum VDD | D7: 1.283 | E7: 1.283 | F7: 1.283 | G7: 1.283 | H7: 1.283 | I7: 1.283 | J7: 1.283 | K7: 1.283 | L7: 1.283 | M7: 1.283 | O7: 1.283 | P7: 1.283 | Q7: 1.283 | R7: 1.283 | S7: 1.283 | T7: 1.283 | U7: 1.283 | V7: 1.283 | W7: 1.283 | X7: 1.283 | Z7: 1.283 | AA7: 1.283 | AB7: 1.283 | AC7: 1.283 | AD7: 1.283 | AE7: 1.283 | AF7: 1.283 | AG7: 1.283 | AH7: 1.283 | AI7: 1.283 | AK7: 1.283 | AL7: 1.283 | AM7: 1.283 | AN7: 1.283 | AO7: 1.283 | AP7: 1.283 | AQ7: 1.283 | AR7: 1.283 | AS7: 1.283 | AT7: 1.283 | AV7: 1.283 | AW7: 1.283 | AX7: 1.283 | AY7: 1.283 | AZ7: 1.283 | BA7: 1.283 | BB7: 1.283 | BC7: 1.283 | BD7: 1.283 | BE7: 1.283 | BG7: V
A9: IDD0 | B9: Maximum active precharge current | C9: x4/x8 | D9: na | E9: 46 | F9: na | G9: 43 | H9: na | I9: 42 | J9: 41 | K9: 39 | L9: na | M9: na | O9: na | P9: 46 | Q9: na | R9: 43 | S9: na | T9: 42 | U9: 41 | V9: 39 | W9: na | X9: na | Z9: na | AA9: 31 | AB9: na | AC9: 29 | AD9: na | AE9: 28 | AF9: na | AG9: na | AH9: na | AI9: na | AK9: na | AL9: na | AM9: 69 | AN9: 69 | AO9: 67 | AP9: 67 | AQ9: na | AR9: na | AS9: na | AT9: na | AV9: na | AW9: na | AX9: na | AY9: na | AZ9: na | BA9: na | BB9: na | BC9: na | BD9: na | BE9: na | BG9: mA
C10: x16 | D10: na | E10: 55 | F10: na | G10: 51 | H10: na | I10: 49 | J10: 48 | K10: 46 | L10: na | M10: na | O10: na | P10: 55 | Q10: na | R10: 51 | S10: na | T10: 49 | U10: 48 | V10: 46 | W10: na | X10: na | Z10: na | AA10: 34 | AB10: na | AC10: 32 | AD10: na | AE10: 32 | AF10: na | AG10: na | AH10: na | AI10: na | AK10: na | AL10: na | AM10: 69 | AN10: 69 | AO10: 67 | AP10: 67 | AQ10: na | AR10: na | AS10: na | AT10: na | AV10: na | AW10: na | AX10: 85 | AY10: 85 | AZ10: 83 | BA10: 83 | BB10: na | BC10: na | BD10: na | BE10: na | BG10: mA
A11: IDD2P (Slow) | B11: Maximum precharge power-down standby current(Slow Exit) | C11: x4/x8 | D11: na | E11: 12 | F11: na | G11: 12 | H11: na | I11: 12 | J11: 12 | K11: 12 | L11: na | M11: na | O11: na | P11: 12 | Q11: na | R11: 12 | S11: na | T11: 12 | U11: 12 | V11: 12 | W11: na | X11: na | Z11: na | AA11: 12 | AB11: na | AC11: 11 | AD11: na | AE11: 10 | AF11: na | AG11: na | AH11: na | AI11: na | AK11: na | AL11: na | AM11: 11 | AN11: 11 | AO11: 11 | AP11: 11 | AQ11: na | AR11: na | AS11: na | AT11: na | AV11: na | AW11: na | AX11: na | AY11: na | AZ11: na | BA11: na | BB11: na | BC11: na | BD11: na | BE11: na | BG11: mA
C12: x16 | D12: na | E12: 12 | F12: na | G12: 12 | H12: na | I12: 12 | J12: 12 | K12: 12 | L12: na | M12: na | O12: na | P12: 12 | Q12: na | R12: 12 | S12: na | T12: 12 | U12: 12 | V12: 12 | W12: na | X12: na | Z12: na | AA12: 12 | AB12: na | AC12: 12 | AD12: na | AE12: 12 | AF12: na | AG12: na | AH12: na | AI12: na | AK12: na | AL12: na | AM12: 11 | AN12: 11 | AO12: 11 | AP12: 11 | AQ12: na | AR12: na | AS12: na | AT12: na | AV12: na | AW12: na | AX12: 22 | AY12: 22 | AZ12: 22 | BA12: 22 | BB12: na | BC12: na | BD12: na | BE12: na | BG12: mA
A13: IDD2P (Fast) | B13: Maximum precharge power-down standby current(Fast Exit) | C13: x4/x8 | D13: na | E13: 15 | F13: na | G13: 15 | H13: na | I13: 15 | J13: 15 | K13: 15 | L13: na | M13: na | O13: na | P13: 15 | Q13: na | R13: 15 | S13: na | T13: 15 | U13: 15 | V13: 15 | W13: na | X13: na | Z13: na | AA13: 13 | AB13: na | AC13: 11 | AD13: na | AE13: 11 | AF13: na | AG13: na | AH13: na | AI13: na | AK13: na | AL13: na | AM13: 16 | AN13: 16 | AO13: 14 | AP13: 14 | AQ13: na | AR13: na | AS13: na | AT13: na | AV13: na | AW13: na | AX13: na | AY13: na | AZ13: na | BA13: na | BB13: na | BC13: na | BD13: na | BE13: na | BG13: mA
C14: x16 | D14: na | E14: 15 | F14: na | G14: 15 | H14: na | I14: 15 | J14: 15 | K14: 15 | L14: na | M14: na | O14: na | P14: 15 | Q14: na | R14: 15 | S14: na | T14: 15 | U14: 15 | V14: 15 | W14: na | X14: na | Z14: na | AA14: 14 | AB14: na | AC14: 12 | AD14: na | AE14: 12 | AF14: na | AG14: na | AH14: na | AI14: na | AK14: na | AL14: na | AM14: 16 | AN14: 16 | AO14: 14 | AP14: 14 | AQ14: na | AR14: na | AS14: na | AT14: na | AV14: na | AW14: na | AX14: 27 | AY14: 27 | AZ14: 25 | BA14: 25 | BB14: na | BC14: na | BD14: na | BE14: na | BG14: mA
A15: IDD2N | B15: Maximum precharge standby current | C15: x4/x8 | D15: na | E15: 23 | F15: na | G15: 23 | H15: na | I15: 23 | J15: 23 | K15: 23 | L15: na | M15: na | O15: na | P15: 23 | Q15: na | R15: 23 | S15: na | T15: 23 | U15: 23 | V15: 23 | W15: na | X15: na | Z15: na | AA15: 22 | AB15: na | AC15: 17 | AD15: na | AE15: 16 | AF15: na | AG15: na | AH15: na | AI15: na | AK15: na | AL15: na | AM15: 38 | AN15: 38 | AO15: 36 | AP15: 36 | AQ15: na | AR15: na | AS15: na | AT15: na | AV15: na | AW15: na | AX15: na | AY15: na | AZ15: na | BA15: na | BB15: na | BC15: na | BD15: na | BE15: na | BG15: mA
C16: x16 | D16: na | E16: 23 | F16: na | G16: 23 | H16: na | I16: 23 | J16: 23 | K16: 23 | L16: na | M16: na | O16: na | P16: 23 | Q16: na | R16: 23 | S16: na | T16: 23 | U16: 23 | V16: 23 | W16: na | X16: na | Z16: na | AA16: 22 | AB16: na | AC16: 17 | AD16: na | AE16: 17 | AF16: na | AG16: na | AH16: na | AI16: na | AK16: na | AL16: na | AM16: 38 | AN16: 38 | AO16: 36 | AP16: 36 | AQ16: na | AR16: na | AS16: na | AT16: na | AV16: na | AW16: na | AX16: 49 | AY16: 49 | AZ16: 47 | BA16: 47 | BB16: na | BC16: na | BD16: na | BE16: na | BG16: mA
A17: IDD3P | B17: Maximum active power-down standby current | C17: x4/x8 | D17: na | E17: 17 | F17: na | G17: 17 | H17: na | I17: 17 | J17: 17 | K17: 17 | L17: na | M17: na | O17: na | P17: 22 | Q17: na | R17: 22 | S17: na | T17: 22 | U17: 22 | V17: 22 | W17: na | X17: na | Z17: na | AA17: 17 | AB17: na | AC17: 15 | AD17: na | AE17: 15 | AF17: na | AG17: na | AH17: na | AI17: na | AK17: na | AL17: na | AM17: 38 | AN17: 38 | AO17: 36 | AP17: 36 | AQ17: na | AR17: na | AS17: na | AT17: na | AV17: na | AW17: na | AX17: na | AY17: na | AZ17: na | BA17: na | BB17: na | BC17: na | BD17: na | BE17: na | BG17: mA
C18: x16 | D18: na | E18: 17 | F18: na | G18: 17 | H18: na | I18: 17 | J18: 17 | K18: 17 | L18: na | M18: na | O18: na | P18: 22 | Q18: na | R18: 22 | S18: na | T18: 22 | U18: 22 | V18: 22 | W18: na | X18: na | Z18: na | AA18: 19 | AB18: na | AC18: 17 | AD18: na | AE18: 17 | AF18: na | AG18: na | AH18: na | AI18: na | AK18: na | AL18: na | AM18: 38 | AN18: 38 | AO18: 36 | AP18: 36 | AQ18: na | AR18: na | AS18: na | AT18: na | AV18: na | AW18: na | AX18: 49 | AY18: 49 | AZ18: 47 | BA18: 47 | BB18: na | BC18: na | BD18: na | BE18: na | BG18: mA
A19: IDD3N | B19: Maximum active standby current | C19: x4/x8 | D19: na | E19: 40 | F19: na | G19: 37 | H19: na | I19: 35 | J19: 33 | K19: 31 | L19: na | M19: na | O19: na | P19: 40 | Q19: na | R19: 37 | S19: na | T19: 35 | U19: 33 | V19: 31 | W19: na | X19: na | Z19: na | AA19: 23 | AB19: na | AC19: 21 | AD19: na | AE19: 20 | AF19: na | AG19: na | AH19: na | AI19: na | AK19: na | AL19: na | AM19: 53 | AN19: 53 | AO19: 51 | AP19: 51 | AQ19: na | AR19: na | AS19: na | AT19: na | AV19: na | AW19: na | AX19: na | AY19: na | AZ19: na | BA19: na | BB19: na | BC19: na | BD19: na | BE19: na | BG19: mA
C20: x16 | D20: na | E20: 43 | F20: na | G20: 38 | H20: na | I20: 37 | J20: 36 | K20: 33 | L20: na | M20: na | O20: na | P20: 43 | Q20: na | R20: 39 | S20: na | T20: 37 | U20: 36 | V20: 33 | W20: na | X20: na | Z20: na | AA20: 25 | AB20: na | AC20: 23 | AD20: na | AE20: 22 | AF20: na | AG20: na | AH20: na | AI20: na | AK20: na | AL20: na | AM20: 53 | AN20: 53 | AO20: 51 | AP20: 51 | AQ20: na | AR20: na | AS20: na | AT20: na | AV20: na | AW20: na | AX20: 64 | AY20: 64 | AZ20: 62 | BA20: 62 | BB20: na | BC20: na | BD20: na | BE20: na | BG20: mA
A21: IDD4R | B21: Maximum read burst current | C21: x4 | D21: na | E21: 125 | F21: na | G21: 110 | H21: na | I21: 100 | J21: 88 | K21: 74 | L21: na | M21: na | O21: na | P21: 120 | Q21: na | R21: 106 | S21: na | T21: 96 | U21: 84 | V21: 70 | W21: na | X21: na | Z21: na | AA21: 110 | AB21: na | AC21: 90 | AD21: na | AE21: 90 | AF21: na | AG21: na | AH21: na | AI21: na | AK21: na | AL21: na | AM21: 135 | AN21: 135 | AO21: 125 | AP21: 125 | AQ21: na | AR21: na | AS21: na | AT21: na | AV21: na | AW21: na | AX21: na | AY21: na | AZ21: na | BA21: na | BB21: na | BC21: na | BD21: na | BE21: na | BG21: mA
C22: x8 | D22: na | E22: 125 | F22: na | G22: 110 | H22: na | I22: 100 | J22: 88 | K22: 74 | L22: na | M22: na | O22: na | P22: 125 | Q22: na | R22: 110 | S22: na | T22: 100 | U22: 88 | V22: 74 | W22: na | X22: na | Z22: na | AA22: 110 | AB22: na | AC22: 90 | AD22: na | AE22: 90 | AF22: na | AG22: na | AH22: na | AI22: na | AK22: na | AL22: na | AM22: 135 | AN22: 135 | AO22: 125 | AP22: 125 | AQ22: na | AR22: na | AS22: na | AT22: na | AV22: na | AW22: na | AX22: na | AY22: na | AZ22: na | BA22: na | BB22: na | BC22: na | BD22: na | BE22: na | BG22: mA
C23: x16 | D23: na | E23: 180 | F23: na | G23: 155 | H23: na | I23: 135 | J23: 115 | K23: 95 | L23: na | M23: na | O23: na | P23: 180 | Q23: na | R23: 155 | S23: na | T23: 135 | U23: 115 | V23: 95 | W23: na | X23: na | Z23: na | AA23: 130 | AB23: na | AC23: 120 | AD23: na | AE23: 110 | AF23: na | AG23: na | AH23: na | AI23: na | AK23: na | AL23: na | AM23: 195 | AN23: 195 | AO23: 185 | AP23: 185 | AQ23: na | AR23: na | AS23: na | AT23: na | AV23: na | AW23: na | AX23: 211 | AY23: 211 | AZ23: 201 | BA23: 201 | BB23: na | BC23: na | BD23: na | BE23: na | BG23: mA
A24: IDD4W | B24: Maximum write burst current | C24: x4 | D24: na | E24: 126 | F24: na | G24: 114 | H24: na | I24: 103 | J24: 91 | K24: 79 | L24: na | M24: na | O24: na | P24: 122 | Q24: na | R24: 110 | S24: na | T24: 99 | U24: 87 | V24: 75 | W24: na | X24: na | Z24: na | AA24: 110 | AB24: na | AC24: 90 | AD24: na | AE24: 90 | AF24: na | AG24: na | AH24: na | AI24: na | AK24: na | AL24: na | AM24: 135 | AN24: 135 | AO24: 125 | AP24: 125 | AQ24: na | AR24: na | AS24: na | AT24: na | AV24: na | AW24: na | AX24: na | AY24: na | AZ24: na | BA24: na | BB24: na | BC24: na | BD24: na | BE24: na | BG24: mA
C25: x8 | D25: na | E25: 126 | F25: na | G25: 114 | H25: na | I25: 103 | J25: 91 | K25: 79 | L25: na | M25: na | O25: na | P25: 126 | Q25: na | R25: 114 | S25: na | T25: 103 | U25: 91 | V25: 79 | W25: na | X25: na | Z25: na | AA25: 110 | AB25: na | AC25: 90 | AD25: na | AE25: 90 | AF25: na | AG25: na | AH25: na | AI25: na | AK25: na | AL25: na | AM25: 135 | AN25: 135 | AO25: 125 | AP25: 125 | AQ25: na | AR25: na | AS25: na | AT25: na | AV25: na | AW25: na | AX25: na | AY25: na | AZ25: na | BA25: na | BB25: na | BC25: na | BD25: na | BE25: na | BG25: mA
C26: x16 | D26: na | E26: 184 | F26: na | G26: 164 | H26: na | I26: 146 | J26: 127 | K26: 107 | L26: na | M26: na | O26: na | P26: 184 | Q26: na | R26: 164 | S26: na | T26: 146 | U26: 127 | V26: 107 | W26: na | X26: na | Z26: na | AA26: 140 | AB26: na | AC26: 130 | AD26: na | AE26: 120 | AF26: na | AG26: na | AH26: na | AI26: na | AK26: na | AL26: na | AM26: 195 | AN26: 195 | AO26: 185 | AP26: 185 | AQ26: na | AR26: na | AS26: na | AT26: na | AV26: na | AW26: na | AX26: 211 | AY26: 211 | AZ26: 201 | BA26: 201 | BB26: na | BC26: na | BD26: na | BE26: na | BG26: mA
A27: IDD5B | B27: Maximum burst refresh current | C27: x4/x8 | D27: na | E27: 170 | F27: na | G27: 165 | H27: na | I27: 160 | J27: 160 | K27: 155 | L27: na | M27: na | O27: na | P27: 190 | Q27: na | R27: 184 | S27: na | T27: 182 | U27: 181 | V27: 179 | W27: na | X27: na | Z27: na | AA27: 160 | AB27: na | AC27: 152 | AD27: na | AE27: 152 | AF27: na | AG27: na | AH27: na | AI27: na | AK27: na | AL27: na | AM27: 250 | AN27: 250 | AO27: 245 | AP27: 245 | AQ27: na | AR27: na | AS27: na | AT27: na | AV27: na | AW27: na | AX27: na | AY27: na | AZ27: na | BA27: na | BB27: na | BC27: na | BD27: na | BE27: na | BG27: mA
C28: x16 | D28: na | E28: 170 | F28: na | G28: 165 | H28: na | I28: 160 | J28: 160 | K28: 155 | L28: na | M28: na | O28: na | P28: 190 | Q28: na | R28: 184 | S28: na | T28: 182 | U28: 181 | V28: 179 | W28: na | X28: na | Z28: na | AA28: 160 | AB28: na | AC28: 156 | AD28: na | AE28: 156 | AF28: na | AG28: na | AH28: na | AI28: na | AK28: na | AL28: na | AM28: 250 | AN28: 250 | AO28: 245 | AP28: 245 | AQ28: na | AR28: na | AS28: na | AT28: na | AV28: na | AW28: na | AX28: 261 | AY28: 261 | AZ28: 256 | BA28: 256 | BB28: na | BC28: na | BD28: na | BE28: na | BG28: mA
B30: tCK used for current measurements (see current notes) | D30: 0.938 | E30: 0.938 | F30: 1.07 | G30: 1.07 | H30: 1.25 | I30: 1.25 | J30: 1.5 | K30: 1.875 | L30: 1.875 | M30: 2.5 | O30: 0.938 | P30: 0.938 | Q30: 1.07 | R30: 1.07 | S30: 1.25 | T30: 1.25 | U30: 1.5 | V30: 1.875 | W30: 1.875 | X30: 2.5 | Z30: 0.938 | AA30: 0.938 | AB30: 1.07 | AC30: 1.07 | AD30: 1.25 | AE30: 1.25 | AF30: 1.5 | AG30: 1.875 | AH30: 1.875 | AI30: 2.5 | AK30: 0.938 | AL30: 0.938 | AM30: 1.07 | AN30: 1.07 | AO30: 1.25 | AP30: 1.25 | AQ30: 1.5 | AR30: 1.875 | AS30: 1.875 | AT30: 2.5 | AV30: 0.938 | AW30: 0.938 | AX30: 1.07 | AY30: 1.07 | AZ30: 1.25 | BA30: 1.25 | BB30: 1.5 | BC30: 1.875 | BD30: 1.875 | BE30: 2.5 | BG30: ns
A31: tRRD | B31: Minimum activate-to-activate timing (different bank) | C31: x4/x8 | D31: 6 | E31: 6 | F31: 6 | G31: 6 | H31: 6 | I31: 6 | J31: 6 | K31: 7.5 | L31: 7.5 | M31: 10 | O31: 6 | P31: 6 | Q31: 6 | R31: 6 | S31: 6 | T31: 6 | U31: 6 | V31: 7.5 | W31: 7.5 | X31: 10 | Z31: 6 | AA31: 6 | AB31: 6 | AC31: 6 | AD31: 6 | AE31: 6 | AF31: 6 | AG31: 7.5 | AH31: 7.5 | AI31: 10 | AK31: 6 | AL31: 6 | AM31: 6 | AN31: 6 | AO31: 6 | AP31: 6 | AQ31: 6 | AR31: 7.5 | AS31: 7.5 | AT31: 10 | AV31: 6 | AW31: 6 | AX31: 6 | AY31: 6 | AZ31: 6 | BA31: 6 | BB31: 6 | BC31: 7.5 | BD31: 7.5 | BE31: 10 | BG31: ns
C32: x16 | D32: 7.5 | E32: 7.5 | F32: 7.5 | G32: 7.5 | H32: 7.5 | I32: 7.5 | J32: 7.5 | K32: 10 | L32: 10 | M32: 10 | O32: 7.5 | P32: 7.5 | Q32: 7.5 | R32: 7.5 | S32: 7.5 | T32: 7.5 | U32: 7.5 | V32: 10 | W32: 10 | X32: 10 | Z32: 7.5 | AA32: 7.5 | AB32: 7.5 | AC32: 7.5 | AD32: 7.5 | AE32: 7.5 | AF32: 7.5 | AG32: 10 | AH32: 10 | AI32: 10 | AK32: 7.5 | AL32: 7.5 | AM32: 7.5 | AN32: 7.5 | AO32: 7.5 | AP32: 7.5 | AQ32: 7.5 | AR32: 10 | AS32: 10 | AT32: 10 | AV32: 7.5 | AW32: 7.5 | AX32: 7.5 | AY32: 7.5 | AZ32: 7.5 | BA32: 7.5 | BB32: 7.5 | BC32: 10 | BD32: 10 | BE32: 10 | BG32: ns
A33: tRC | B33: Minimum activate-to-activate timing (same bank) | D33: 45.155 | E33: 46.09 | F33: 46.84 | G33: 47.91 | H33: 47.5 | I33: 48.75 | J33: 49.5 | K33: 50.625 | L33: 52.5 | M33: 52.5 | O33: 45.155 | P33: 46.09 | Q33: 46.84 | R33: 47.91 | S33: 47.5 | T33: 48.75 | U33: 49.5 | V33: 50.625 | W33: 52.5 | X33: 52.5 | Z33: 45.155 | AA33: 46.09 | AB33: 46.84 | AC33: 47.91 | AD33: 47.5 | AE33: 48.75 | AF33: 49.5 | AG33: 50.625 | AH33: 52.5 | AI33: 52.5 | AK33: 45.155 | AL33: 46.09 | AM33: 46.84 | AN33: 47.91 | AO33: 47.5 | AP33: 48.75 | AQ33: 49.5 | AR33: 50.625 | AS33: 52.5 | AT33: 52.5 | AV33: 45.155 | AW33: 46.09 | AX33: 46.84 | AY33: 47.91 | AZ33: 47.5 | BA33: 48.75 | BB33: 49.5 | BC33: 50.625 | BD33: 52.5 | BE33: 52.5 | BG33: ns
A34: tRAS | B34: tRAS used for IDD0 calculation | D34: 36 | E34: 36 | F34: 34 | G34: 34 | H34: 35 | I34: 35 | J34: 36 | K34: 37.5 | L34: 37.5 | M34: 37.5 | O34: 36 | P34: 36 | Q34: 34 | R34: 34 | S34: 35 | T34: 35 | U34: 36 | V34: 37.5 | W34: 37.5 | X34: 37.5 | Z34: 36 | AA34: 36 | AB34: 34 | AC34: 34 | AD34: 35 | AE34: 35 | AF34: 36 | AG34: 37.5 | AH34: 37.5 | AI34: 37.5 | AK34: 36 | AL34: 36 | AM34: 34 | AN34: 34 | AO34: 35 | AP34: 35 | AQ34: 36 | AR34: 37.5 | AS34: 37.5 | AT34: 37.5 | AV34: 36 | AW34: 36 | AX34: 34 | AY34: 34 | AZ34: 35 | BA34: 35 | BB34: 36 | BC34: 37.5 | BD34: 37.5 | BE34: 37.5 | BG34: ns
A35: tRFC (MIN) | B35: Minimum refresh-to-refresh cycle time | D35: 110 | E35: 110 | F35: 110 | G35: 110 | H35: 110 | I35: 110 | J35: 110 | K35: 110 | L35: 110 | M35: 110 | O35: 160 | P35: 160 | Q35: 160 | R35: 160 | S35: 160 | T35: 160 | U35: 160 | V35: 160 | W35: 160 | X35: 160 | Z35: 260 | AA35: 260 | AB35: 260 | AC35: 260 | AD35: 260 | AE35: 260 | AF35: 260 | AG35: 260 | AH35: 260 | AI35: 260 | AK35: 350 | AL35: 350 | AM35: 350 | AN35: 350 | AO35: 350 | AP35: 350 | AQ35: 350 | AR35: 350 | AS35: 350 | AT35: 350 | AV35: 350 | AW35: 350 | AX35: 350 | AY35: 350 | AZ35: 350 | BA35: 350 | BB35: 350 | BC35: 350 | BD35: 350 | BE35: 350 | BG35: ns
A36: tREFI | B36: Average periodic refresh cycle time | D36: 7.8 | E36: 7.8 | F36: 7.8 | G36: 7.8 | H36: 7.8 | I36: 7.8 | J36: 7.8 | K36: 7.8 | L36: 7.8 | M36: 7.8 | O36: 7.8 | P36: 7.8 | Q36: 7.8 | R36: 7.8 | S36: 7.8 | T36: 7.8 | U36: 7.8 | V36: 7.8 | W36: 7.8 | X36: 7.8 | Z36: 7.8 | AA36: 7.8 | AB36: 7.8 | AC36: 7.8 | AD36: 7.8 | AE36: 7.8 | AF36: 7.8 | AG36: 7.8 | AH36: 7.8 | AI36: 7.8 | AK36: 7.8 | AL36: 7.8 | AM36: 7.8 | AN36: 7.8 | AO36: 7.8 | AP36: 7.8 | AQ36: 7.8 | AR36: 7.8 | AS36: 7.8 | AT36: 7.8 | AV36: 7.8 | AW36: 7.8 | AX36: 7.8 | AY36: 7.8 | AZ36: 7.8 | BA36: 7.8 | BB36: 7.8 | BC36: 7.8 | BD36: 7.8 | BE36: 7.8 | BG36: µs
A37: tCK (MIN) | B37: Minimum tCK cycle rate | D37: 0.938 | E37: 0.938 | F37: 1.07 | G37: 1.07 | H37: 1.25 | I37: 1.25 | J37: 1.5 | K37: 1.875 | L37: 1.875 | M37: 2.5 | O37: 0.938 | P37: 0.938 | Q37: 1.07 | R37: 1.07 | S37: 1.25 | T37: 1.25 | U37: 1.5 | V37: 1.875 | W37: 1.875 | X37: 2.5 | Z37: 0.938 | AA37: 0.938 | AB37: 1.07 | AC37: 1.07 | AD37: 1.25 | AE37: 1.25 | AF37: 1.5 | AG37: 1.875 | AH37: 1.875 | AI37: 2.5 | AK37: 0.938 | AL37: 0.938 | AM37: 1.07 | AN37: 1.07 | AO37: 1.25 | AP37: 1.25 | AQ37: 1.5 | AR37: 1.875 | AS37: 1.875 | AT37: 2.5 | AV37: 0.938 | AW37: 0.938 | AX37: 1.07 | AY37: 1.07 | AZ37: 1.25 | BA37: 1.25 | BB37: 1.5 | BC37: 1.875 | BD37: 1.875 | BE37: 2.5 | BG37: ns
A38: tCK (MAX) | B38: Maximum tCK cycle rate | D38: 3.3 | E38: 3.3 | F38: 3.3 | G38: 3.3 | H38: 3.3 | I38: 3.3 | J38: 3.3 | K38: 3.3 | L38: 3.3 | M38: 3.3 | O38: 3.3 | P38: 3.3 | Q38: 3.3 | R38: 3.3 | S38: 3.3 | T38: 3.3 | U38: 3.3 | V38: 3.3 | W38: 3.3 | X38: 3.3 | Z38: 3.3 | AA38: 3.3 | AB38: 3.3 | AC38: 3.3 | AD38: 3.3 | AE38: 3.3 | AF38: 3.3 | AG38: 3.3 | AH38: 3.3 | AI38: 3.3 | AK38: 3.3 | AL38: 3.3 | AM38: 3.3 | AN38: 3.3 | AO38: 3.3 | AP38: 3.3 | AQ38: 3.3 | AR38: 3.3 | AS38: 3.3 | AT38: 3.3 | AV38: 3.3 | AW38: 3.3 | AX38: 3.3 | AY38: 3.3 | AZ38: 3.3 | BA38: 3.3 | BB38: 3.3 | BC38: 3.3 | BD38: 3.3 | BE38: 3.3 | BG38: ns
A41: Do Not Go Below This Box Do Not Go Below This Box Do Not Go Below This Box Do Not Go Below This Box Do Not Go Below This Box Do Not Go Below This Box Do Not Go Below This Box Do Not Go Below This Box
D42: =IF('DDR3 Config'!$G$1=1,'DDR3 Spec'!D5,IF('DDR3 Config'!$G$1=2,'DDR3 Spec'!O5,IF('DDR3 Config'!$G$1=3,'DDR3 Spec'!Z5,IF('DDR3 Config'!$G$1=4,'DDR3 Spec'!AK5,'DDR3 Spec'!AV5)))) -> -093E | E42: =IF('DDR3 Config'!$G$1=1,'DDR3 Spec'!E5,IF('DDR3 Config'!$G$1=2,'DDR3 Spec'!P5,IF('DDR3 Config'!$G$1=3,'DDR3 Spec'!AA5,IF('DDR3 Config'!$G$1=4,'DDR3 Spec'!AL5,'DDR3 Spec'!AW5)))) -> -093 | F42: =IF('DDR3 Config'!$G$1=1,'DDR3 Spec'!F5,IF('DDR3 Config'!$G$1=2,'DDR3 Spec'!Q5,IF('DDR3 Config'!$G$1=3,'DDR3 Spec'!AB5,IF('DDR3 Config'!$G$1=4,'DDR3 Spec'!AM5,'DDR3 Spec'!AX5)))) -> -107E | G42: =IF('DDR3 Config'!$G$1=1,'DDR3 Spec'!G5,IF('DDR3 Config'!$G$1=2,'DDR3 Spec'!R5,IF('DDR3 Config'!$G$1=3,'DDR3 Spec'!AC5,IF('DDR3 Config'!$G$1=4,'DDR3 Spec'!AN5,'DDR3 Spec'!AY5)))) -> -107 | H42: =IF('DDR3 Config'!$G$1=1,'DDR3 Spec'!H5,IF('DDR3 Config'!$G$1=2,'DDR3 Spec'!S5,IF('DDR3 Config'!$G$1=3,'DDR3 Spec'!AD5,IF('DDR3 Config'!$G$1=4,'DDR3 Spec'!AO5,'DDR3 Spec'!AZ5)))) -> -125E | I42: =IF('DDR3 Config'!$G$1=1,'DDR3 Spec'!I5,IF('DDR3 Config'!$G$1=2,'DDR3 Spec'!T5,IF('DDR3 Config'!$G$1=3,'DDR3 Spec'!AE5,IF('DDR3 Config'!$G$1=4,'DDR3 Spec'!AP5,'DDR3 Spec'!BA5)))) -> -125 | J42: =IF('DDR3 Config'!$G$1=1,'DDR3 Spec'!J5,IF('DDR3 Config'!$G$1=2,'DDR3 Spec'!U5,IF('DDR3 Config'!$G$1=3,'DDR3 Spec'!AF5,IF('DDR3 Config'!$G$1=4,'DDR3 Spec'!AQ5,'DDR3 Spec'!BB5)))) -> -15E | K42: =IF('DDR3 Config'!$G$1=1,'DDR3 Spec'!K5,IF('DDR3 Config'!$G$1=2,'DDR3 Spec'!V5,IF('DDR3 Config'!$G$1=3,'DDR3 Spec'!AG5,IF('DDR3 Config'!$G$1=4,'DDR3 Spec'!AR5,'DDR3 Spec'!BC5)))) -> -187E | L42: =IF('DDR3 Config'!$G$1=1,'DDR3 Spec'!L5,IF('DDR3 Config'!$G$1=2,'DDR3 Spec'!W5,IF('DDR3 Config'!$G$1=3,'DDR3 Spec'!AH5,IF('DDR3 Config'!$G$1=4,'DDR3 Spec'!AS5,'DDR3 Spec'!BD5)))) -> -187 | M42: =IF('DDR3 Config'!$G$1=1,'DDR3 Spec'!M5,IF('DDR3 Config'!$G$1=2,'DDR3 Spec'!X5,IF('DDR3 Config'!$G$1=3,'DDR3 Spec'!AI5,IF('DDR3 Config'!$G$1=4,'DDR3 Spec'!AT5,'DDR3 Spec'!BE5)))) -> -25 | W42: ='DDR3 Config'!C9 -> -093
D43: 1 | E43: 2 | F43: 3 | G43: 4 | H43: 5 | I43: 6 | J43: 7 | K43: 8 | L43: 9 | M43: 10 | W43: ='DDR3 Config'!H1 -> 2
D44: =IF('DDR3 Config'!$G$1=1,'DDR3 Spec'!D6,IF('DDR3 Config'!$G$1=2,'DDR3 Spec'!O6,IF('DDR3 Config'!$G$1=3,'DDR3 Spec'!Z6,IF('DDR3 Config'!$G$1=4,'DDR3 Spec'!AK6,'DDR3 Spec'!AV6)))) -> 1.435 | E44: =IF('DDR3 Config'!$G$1=1,'DDR3 Spec'!E6,IF('DDR3 Config'!$G$1=2,'DDR3 Spec'!P6,IF('DDR3 Config'!$G$1=3,'DDR3 Spec'!AA6,IF('DDR3 Config'!$G$1=4,'DDR3 Spec'!AL6,'DDR3 Spec'!AW6)))) -> 1.435 | F44: =IF('DDR3 Config'!$G$1=1,'DDR3 Spec'!F6,IF('DDR3 Config'!$G$1=2,'DDR3 Spec'!Q6,IF('DDR3 Config'!$G$1=3,'DDR3 Spec'!AB6,IF('DDR3 Config'!$G$1=4,'DDR3 Spec'!AM6,'DDR3 Spec'!AX6)))) -> 1.435 | G44: =IF('DDR3 Config'!$G$1=1,'DDR3 Spec'!G6,IF('DDR3 Config'!$G$1=2,'DDR3 Spec'!R6,IF('DDR3 Config'!$G$1=3,'DDR3 Spec'!AC6,IF('DDR3 Config'!$G$1=4,'DDR3 Spec'!AN6,'DDR3 Spec'!AY6)))) -> 1.435 | H44: =IF('DDR3 Config'!$G$1=1,'DDR3 Spec'!H6,IF('DDR3 Config'!$G$1=2,'DDR3 Spec'!S6,IF('DDR3 Config'!$G$1=3,'DDR3 Spec'!AD6,IF('DDR3 Config'!$G$1=4,'DDR3 Spec'!AO6,'DDR3 Spec'!AZ6)))) -> 1.435 | I44: =IF('DDR3 Config'!$G$1=1,'DDR3 Spec'!I6,IF('DDR3 Config'!$G$1=2,'DDR3 Spec'!T6,IF('DDR3 Config'!$G$1=3,'DDR3 Spec'!AE6,IF('DDR3 Config'!$G$1=4,'DDR3 Spec'!AP6,'DDR3 Spec'!BA6)))) -> 1.435 | J44: =IF('DDR3 Config'!$G$1=1,'DDR3 Spec'!J6,IF('DDR3 Config'!$G$1=2,'DDR3 Spec'!U6,IF('DDR3 Config'!$G$1=3,'DDR3 Spec'!AF6,IF('DDR3 Config'!$G$1=4,'DDR3 Spec'!AQ6,'DDR3 Spec'!BB6)))) -> 1.435 | K44: =IF('DDR3 Config'!$G$1=1,'DDR3 Spec'!K6,IF('DDR3 Config'!$G$1=2,'DDR3 Spec'!V6,IF('DDR3 Config'!$G$1=3,'DDR3 Spec'!AG6,IF('DDR3 Config'!$G$1=4,'DDR3 Spec'!AR6,'DDR3 Spec'!BC6)))) -> 1.435 | L44: =IF('DDR3 Config'!$G$1=1,'DDR3 Spec'!L6,IF('DDR3 Config'!$G$1=2,'DDR3 Spec'!W6,IF('DDR3 Config'!$G$1=3,'DDR3 Spec'!AH6,IF('DDR3 Config'!$G$1=4,'DDR3 Spec'!AS6,'DDR3 Spec'!BD6)))) -> 1.435 | M44: =IF('DDR3 Config'!$G$1=1,'DDR3 Spec'!M6,IF('DDR3 Config'!$G$1=2,'DDR3 Spec'!X6,IF('DDR3 Config'!$G$1=3,'DDR3 Spec'!AI6,IF('DDR3 Config'!$G$1=4,'DDR3 Spec'!AT6,'DDR3 Spec'!BE6)))) -> 1.435 | W44: =HLOOKUP($W$43,$D$43:$M$77,2) -> 1.435
D45: =IF('DDR3 Config'!$G$1=1,'DDR3 Spec'!D7,IF('DDR3 Config'!$G$1=2,'DDR3 Spec'!O7,IF('DDR3 Config'!$G$1=3,'DDR3 Spec'!Z7,IF('DDR3 Config'!$G$1=4,'DDR3 Spec'!AK7,'DDR3 Spec'!AV7)))) -> 1.283 | E45: =IF('DDR3 Config'!$G$1=1,'DDR3 Spec'!E7,IF('DDR3 Config'!$G$1=2,'DDR3 Spec'!P7,IF('DDR3 Config'!$G$1=3,'DDR3 Spec'!AA7,IF('DDR3 Config'!$G$1=4,'DDR3 Spec'!AL7,'DDR3 Spec'!AW7)))) -> 1.283 | F45: =IF('DDR3 Config'!$G$1=1,'DDR3 Spec'!F7,IF('DDR3 Config'!$G$1=2,'DDR3 Spec'!Q7,IF('DDR3 Config'!$G$1=3,'DDR3 Spec'!AB7,IF('DDR3 Config'!$G$1=4,'DDR3 Spec'!AM7,'DDR3 Spec'!AX7)))) -> 1.283 | G45: =IF('DDR3 Config'!$G$1=1,'DDR3 Spec'!G7,IF('DDR3 Config'!$G$1=2,'DDR3 Spec'!R7,IF('DDR3 Config'!$G$1=3,'DDR3 Spec'!AC7,IF('DDR3 Config'!$G$1=4,'DDR3 Spec'!AN7,'DDR3 Spec'!AY7)))) -> 1.283 | H45: =IF('DDR3 Config'!$G$1=1,'DDR3 Spec'!H7,IF('DDR3 Config'!$G$1=2,'DDR3 Spec'!S7,IF('DDR3 Config'!$G$1=3,'DDR3 Spec'!AD7,IF('DDR3 Config'!$G$1=4,'DDR3 Spec'!AO7,'DDR3 Spec'!AZ7)))) -> 1.283 | I45: =IF('DDR3 Config'!$G$1=1,'DDR3 Spec'!I7,IF('DDR3 Config'!$G$1=2,'DDR3 Spec'!T7,IF('DDR3 Config'!$G$1=3,'DDR3 Spec'!AE7,IF('DDR3 Config'!$G$1=4,'DDR3 Spec'!AP7,'DDR3 Spec'!BA7)))) -> 1.283 | J45: =IF('DDR3 Config'!$G$1=1,'DDR3 Spec'!J7,IF('DDR3 Config'!$G$1=2,'DDR3 Spec'!U7,IF('DDR3 Config'!$G$1=3,'DDR3 Spec'!AF7,IF('DDR3 Config'!$G$1=4,'DDR3 Spec'!AQ7,'DDR3 Spec'!BB7)))) -> 1.283 | K45: =IF('DDR3 Config'!$G$1=1,'DDR3 Spec'!K7,IF('DDR3 Config'!$G$1=2,'DDR3 Spec'!V7,IF('DDR3 Config'!$G$1=3,'DDR3 Spec'!AG7,IF('DDR3 Config'!$G$1=4,'DDR3 Spec'!AR7,'DDR3 Spec'!BC7)))) -> 1.283 | L45: =IF('DDR3 Config'!$G$1=1,'DDR3 Spec'!L7,IF('DDR3 Config'!$G$1=2,'DDR3 Spec'!W7,IF('DDR3 Config'!$G$1=3,'DDR3 Spec'!AH7,IF('DDR3 Config'!$G$1=4,'DDR3 Spec'!AS7,'DDR3 Spec'!BD7)))) -> 1.283 | M45: =IF('DDR3 Config'!$G$1=1,'DDR3 Spec'!M7,IF('DDR3 Config'!$G$1=2,'DDR3 Spec'!X7,IF('DDR3 Config'!$G$1=3,'DDR3 Spec'!AI7,IF('DDR3 Config'!$G$1=4,'DDR3 Spec'!AT7,'DDR3 Spec'!BE7)))) -> 1.283 | W45: =HLOOKUP($W$43,$D$43:$M$77,3) -> 1.283
C47: IDD0 | D47: =IF('DDR3 Config'!$G$1=1,'DDR3 Spec'!D9,IF('DDR3 Config'!$G$1=2,'DDR3 Spec'!O9,IF('DDR3 Config'!$G$1=3,'DDR3 Spec'!Z9,IF('DDR3 Config'!$G$1=4,'DDR3 Spec'!AK9,'DDR3 Spec'!AV9)))) -> na | E47: =IF('DDR3 Config'!$G$1=1,'DDR3 Spec'!E9,IF('DDR3 Config'!$G$1=2,'DDR3 Spec'!P9,IF('DDR3 Config'!$G$1=3,'DDR3 Spec'!AA9,IF('DDR3 Config'!$G$1=4,'DDR3 Spec'!AL9,'DDR3 Spec'!AW9)))) -> 46 | F47: =IF('DDR3 Config'!$G$1=1,'DDR3 Spec'!F9,IF('DDR3 Config'!$G$1=2,'DDR3 Spec'!Q9,IF('DDR3 Config'!$G$1=3,'DDR3 Spec'!AB9,IF('DDR3 Config'!$G$1=4,'DDR3 Spec'!AM9,'DDR3 Spec'!AX9)))) -> na | G47: =IF('DDR3 Config'!$G$1=1,'DDR3 Spec'!G9,IF('DDR3 Config'!$G$1=2,'DDR3 Spec'!R9,IF('DDR3 Config'!$G$1=3,'DDR3 Spec'!AC9,IF('DDR3 Config'!$G$1=4,'DDR3 Spec'!AN9,'DDR3 Spec'!AY9)))) -> 43 | H47: =IF('DDR3 Config'!$G$1=1,'DDR3 Spec'!H9,IF('DDR3 Config'!$G$1=2,'DDR3 Spec'!S9,IF('DDR3 Config'!$G$1=3,'DDR3 Spec'!AD9,IF('DDR3 Config'!$G$1=4,'DDR3 Spec'!AO9,'DDR3 Spec'!AZ9)))) -> na | I47: =IF('DDR3 Config'!$G$1=1,'DDR3 Spec'!I9,IF('DDR3 Config'!$G$1=2,'DDR3 Spec'!T9,IF('DDR3 Config'!$G$1=3,'DDR3 Spec'!AE9,IF('DDR3 Config'!$G$1=4,'DDR3 Spec'!AP9,'DDR3 Spec'!BA9)))) -> 42 | J47: =IF('DDR3 Config'!$G$1=1,'DDR3 Spec'!J9,IF('DDR3 Config'!$G$1=2,'DDR3 Spec'!U9,IF('DDR3 Config'!$G$1=3,'DDR3 Spec'!AF9,IF('DDR3 Config'!$G$1=4,'DDR3 Spec'!AQ9,'DDR3 Spec'!BB9)))) -> 41 | K47: =IF('DDR3 Config'!$G$1=1,'DDR3 Spec'!K9,IF('DDR3 Config'!$G$1=2,'DDR3 Spec'!V9,IF('DDR3 Config'!$G$1=3,'DDR3 Spec'!AG9,IF('DDR3 Config'!$G$1=4,'DDR3 Spec'!AR9,'DDR3 Spec'!BC9)))) -> 39 | L47: =IF('DDR3 Config'!$G$1=1,'DDR3 Spec'!L9,IF('DDR3 Config'!$G$1=2,'DDR3 Spec'!W9,IF('DDR3 Config'!$G$1=3,'DDR3 Spec'!AH9,IF('DDR3 Config'!$G$1=4,'DDR3 Spec'!AS9,'DDR3 Spec'!BD9)))) -> na | M47: =IF('DDR3 Config'!$G$1=1,'DDR3 Spec'!M9,IF('DDR3 Config'!$G$1=2,'DDR3 Spec'!X9,IF('DDR3 Config'!$G$1=3,'DDR3 Spec'!AI9,IF('DDR3 Config'!$G$1=4,'DDR3 Spec'!AT9,'DDR3 Spec'!BE9)))) -> na | W47: =HLOOKUP($W$43,$D$43:$M$77,5) -> 46
D48: =IF('DDR3 Config'!$G$1=1,'DDR3 Spec'!D10,IF('DDR3 Config'!$G$1=2,'DDR3 Spec'!O10,IF('DDR3 Config'!$G$1=3,'DDR3 Spec'!Z10,IF('DDR3 Config'!$G$1=4,'DDR3 Spec'!AK10,'DDR3 Spec'!AV10)))) -> na | E48: =IF('DDR3 Config'!$G$1=1,'DDR3 Spec'!E10,IF('DDR3 Config'!$G$1=2,'DDR3 Spec'!P10,IF('DDR3 Config'!$G$1=3,'DDR3 Spec'!AA10,IF('DDR3 Config'!$G$1=4,'DDR3 Spec'!AL10,'DDR3 Spec'!AW10)))) -> 55 | F48: =IF('DDR3 Config'!$G$1=1,'DDR3 Spec'!F10,IF('DDR3 Config'!$G$1=2,'DDR3 Spec'!Q10,IF('DDR3 Config'!$G$1=3,'DDR3 Spec'!AB10,IF('DDR3 Config'!$G$1=4,'DDR3 Spec'!AM10,'DDR3 Spec'!AX10)))) -> na | G48: =IF('DDR3 Config'!$G$1=1,'DDR3 Spec'!G10,IF('DDR3 Config'!$G$1=2,'DDR3 Spec'!R10,IF('DDR3 Config'!$G$1=3,'DDR3 Spec'!AC10,IF('DDR3 Config'!$G$1=4,'DDR3 Spec'!AN10,'DDR3 Spec'!AY10)))) -> 51 | H48: =IF('DDR3 Config'!$G$1=1,'DDR3 Spec'!H10,IF('DDR3 Config'!$G$1=2,'DDR3 Spec'!S10,IF('DDR3 Config'!$G$1=3,'DDR3 Spec'!AD10,IF('DDR3 Config'!$G$1=4,'DDR3 Spec'!AO10,'DDR3 Spec'!AZ10)))) -> na | I48: =IF('DDR3 Config'!$G$1=1,'DDR3 Spec'!I10,IF('DDR3 Config'!$G$1=2,'DDR3 Spec'!T10,IF('DDR3 Config'!$G$1=3,'DDR3 Spec'!AE10,IF('DDR3 Config'!$G$1=4,'DDR3 Spec'!AP10,'DDR3 Spec'!BA10)))) -> 49 | J48: =IF('DDR3 Config'!$G$1=1,'DDR3 Spec'!J10,IF('DDR3 Config'!$G$1=2,'DDR3 Spec'!U10,IF('DDR3 Config'!$G$1=3,'DDR3 Spec'!AF10,IF('DDR3 Config'!$G$1=4,'DDR3 Spec'!AQ10,'DDR3 Spec'!BB10)))) -> 48 | K48: =IF('DDR3 Config'!$G$1=1,'DDR3 Spec'!K10,IF('DDR3 Config'!$G$1=2,'DDR3 Spec'!V10,IF('DDR3 Config'!$G$1=3,'DDR3 Spec'!AG10,IF('DDR3 Config'!$G$1=4,'DDR3 Spec'!AR10,'DDR3 Spec'!BC10)))) -> 46 | L48: =IF('DDR3 Config'!$G$1=1,'DDR3 Spec'!L10,IF('DDR3 Config'!$G$1=2,'DDR3 Spec'!W10,IF('DDR3 Config'!$G$1=3,'DDR3 Spec'!AH10,IF('DDR3 Config'!$G$1=4,'DDR3 Spec'!AS10,'DDR3 Spec'!BD10)))) -> na | M48: =IF('DDR3 Config'!$G$1=1,'DDR3 Spec'!M10,IF('DDR3 Config'!$G$1=2,'DDR3 Spec'!X10,IF('DDR3 Config'!$G$1=3,'DDR3 Spec'!AI10,IF('DDR3 Config'!$G$1=4,'DDR3 Spec'!AT10,'DDR3 Spec'!BE10)))) -> na | W48: =HLOOKUP($W$43,$D$43:$M$77,6) -> 55
C49: IDD2P(slow) | D49: =IF('DDR3 Config'!$G$1=1,'DDR3 Spec'!D11,IF('DDR3 Config'!$G$1=2,'DDR3 Spec'!O11,IF('DDR3 Config'!$G$1=3,'DDR3 Spec'!Z11,IF('DDR3 Config'!$G$1=4,'DDR3 Spec'!AK11,'DDR3 Spec'!AV11)))) -> na | E49: =IF('DDR3 Config'!$G$1=1,'DDR3 Spec'!E11,IF('DDR3 Config'!$G$1=2,'DDR3 Spec'!P11,IF('DDR3 Config'!$G$1=3,'DDR3 Spec'!AA11,IF('DDR3 Config'!$G$1=4,'DDR3 Spec'!AL11,'DDR3 Spec'!AW11)))) -> 12 | F49: =IF('DDR3 Config'!$G$1=1,'DDR3 Spec'!F11,IF('DDR3 Config'!$G$1=2,'DDR3 Spec'!Q11,IF('DDR3 Config'!$G$1=3,'DDR3 Spec'!AB11,IF('DDR3 Config'!$G$1=4,'DDR3 Spec'!AM11,'DDR3 Spec'!AX11)))) -> na | G49: =IF('DDR3 Config'!$G$1=1,'DDR3 Spec'!G11,IF('DDR3 Config'!$G$1=2,'DDR3 Spec'!R11,IF('DDR3 Config'!$G$1=3,'DDR3 Spec'!AC11,IF('DDR3 Config'!$G$1=4,'DDR3 Spec'!AN11,'DDR3 Spec'!AY11)))) -> 12 | H49: =IF('DDR3 Config'!$G$1=1,'DDR3 Spec'!H11,IF('DDR3 Config'!$G$1=2,'DDR3 Spec'!S11,IF('DDR3 Config'!$G$1=3,'DDR3 Spec'!AD11,IF('DDR3 Config'!$G$1=4,'DDR3 Spec'!AO11,'DDR3 Spec'!AZ11)))) -> na | I49: =IF('DDR3 Config'!$G$1=1,'DDR3 Spec'!I11,IF('DDR3 Config'!$G$1=2,'DDR3 Spec'!T11,IF('DDR3 Config'!$G$1=3,'DDR3 Spec'!AE11,IF('DDR3 Config'!$G$1=4,'DDR3 Spec'!AP11,'DDR3 Spec'!BA11)))) -> 12 | J49: =IF('DDR3 Config'!$G$1=1,'DDR3 Spec'!J11,IF('DDR3 Config'!$G$1=2,'DDR3 Spec'!U11,IF('DDR3 Config'!$G$1=3,'DDR3 Spec'!AF11,IF('DDR3 Config'!$G$1=4,'DDR3 Spec'!AQ11,'DDR3 Spec'!BB11)))) -> 12 | K49: =IF('DDR3 Config'!$G$1=1,'DDR3 Spec'!K11,IF('DDR3 Config'!$G$1=2,'DDR3 Spec'!V11,IF('DDR3 Config'!$G$1=3,'DDR3 Spec'!AG11,IF('DDR3 Config'!$G$1=4,'DDR3 Spec'!AR11,'DDR3 Spec'!BC11)))) -> 12 | L49: =IF('DDR3 Config'!$G$1=1,'DDR3 Spec'!L11,IF('DDR3 Config'!$G$1=2,'DDR3 Spec'!W11,IF('DDR3 Config'!$G$1=3,'DDR3 Spec'!AH11,IF('DDR3 Config'!$G$1=4,'DDR3 Spec'!AS11,'DDR3 Spec'!BD11)))) -> na | M49: =IF('DDR3 Config'!$G$1=1,'DDR3 Spec'!M11,IF('DDR3 Config'!$G$1=2,'DDR3 Spec'!X11,IF('DDR3 Config'!$G$1=3,'DDR3 Spec'!AI11,IF('DDR3 Config'!$G$1=4,'DDR3 Spec'!AT11,'DDR3 Spec'!BE11)))) -> na | W49: =HLOOKUP($W$43,$D$43:$M$77,7) -> 12
D50: =IF('DDR3 Config'!$G$1=1,'DDR3 Spec'!D12,IF('DDR3 Config'!$G$1=2,'DDR3 Spec'!O12,IF('DDR3 Config'!$G$1=3,'DDR3 Spec'!Z12,IF('DDR3 Config'!$G$1=4,'DDR3 Spec'!AK12,'DDR3 Spec'!AV12)))) -> na | E50: =IF('DDR3 Config'!$G$1=1,'DDR3 Spec'!E12,IF('DDR3 Config'!$G$1=2,'DDR3 Spec'!P12,IF('DDR3 Config'!$G$1=3,'DDR3 Spec'!AA12,IF('DDR3 Config'!$G$1=4,'DDR3 Spec'!AL12,'DDR3 Spec'!AW12)))) -> 12 | F50: =IF('DDR3 Config'!$G$1=1,'DDR3 Spec'!F12,IF('DDR3 Config'!$G$1=2,'DDR3 Spec'!Q12,IF('DDR3 Config'!$G$1=3,'DDR3 Spec'!AB12,IF('DDR3 Config'!$G$1=4,'DDR3 Spec'!AM12,'DDR3 Spec'!AX12)))) -> na | G50: =IF('DDR3 Config'!$G$1=1,'DDR3 Spec'!G12,IF('DDR3 Config'!$G$1=2,'DDR3 Spec'!R12,IF('DDR3 Config'!$G$1=3,'DDR3 Spec'!AC12,IF('DDR3 Config'!$G$1=4,'DDR3 Spec'!AN12,'DDR3 Spec'!AY12)))) -> 12 | H50: =IF('DDR3 Config'!$G$1=1,'DDR3 Spec'!H12,IF('DDR3 Config'!$G$1=2,'DDR3 Spec'!S12,IF('DDR3 Config'!$G$1=3,'DDR3 Spec'!AD12,IF('DDR3 Config'!$G$1=4,'DDR3 Spec'!AO12,'DDR3 Spec'!AZ12)))) -> na | I50: =IF('DDR3 Config'!$G$1=1,'DDR3 Spec'!I12,IF('DDR3 Config'!$G$1=2,'DDR3 Spec'!T12,IF('DDR3 Config'!$G$1=3,'DDR3 Spec'!AE12,IF('DDR3 Config'!$G$1=4,'DDR3 Spec'!AP12,'DDR3 Spec'!BA12)))) -> 12 | J50: =IF('DDR3 Config'!$G$1=1,'DDR3 Spec'!J12,IF('DDR3 Config'!$G$1=2,'DDR3 Spec'!U12,IF('DDR3 Config'!$G$1=3,'DDR3 Spec'!AF12,IF('DDR3 Config'!$G$1=4,'DDR3 Spec'!AQ12,'DDR3 Spec'!BB12)))) -> 12 | K50: =IF('DDR3 Config'!$G$1=1,'DDR3 Spec'!K12,IF('DDR3 Config'!$G$1=2,'DDR3 Spec'!V12,IF('DDR3 Config'!$G$1=3,'DDR3 Spec'!AG12,IF('DDR3 Config'!$G$1=4,'DDR3 Spec'!AR12,'DDR3 Spec'!BC12)))) -> 12 | L50: =IF('DDR3 Config'!$G$1=1,'DDR3 Spec'!L12,IF('DDR3 Config'!$G$1=2,'DDR3 Spec'!W12,IF('DDR3 Config'!$G$1=3,'DDR3 Spec'!AH12,IF('DDR3 Config'!$G$1=4,'DDR3 Spec'!AS12,'DDR3 Spec'!BD12)))) -> na | M50: =IF('DDR3 Config'!$G$1=1,'DDR3 Spec'!M12,IF('DDR3 Config'!$G$1=2,'DDR3 Spec'!X12,IF('DDR3 Config'!$G$1=3,'DDR3 Spec'!AI12,IF('DDR3 Config'!$G$1=4,'DDR3 Spec'!AT12,'DDR3 Spec'!BE12)))) -> na | W50: =HLOOKUP($W$43,$D$43:$M$77,8) -> 12
C51: IDD2N(fast) | D51: =IF('DDR3 Config'!$G$1=1,'DDR3 Spec'!D13,IF('DDR3 Config'!$G$1=2,'DDR3 Spec'!O13,IF('DDR3 Config'!$G$1=3,'DDR3 Spec'!Z13,IF('DDR3 Config'!$G$1=4,'DDR3 Spec'!AK13,'DDR3 Spec'!AV13)))) -> na | E51: =IF('DDR3 Config'!$G$1=1,'DDR3 Spec'!E13,IF('DDR3 Config'!$G$1=2,'DDR3 Spec'!P13,IF('DDR3 Config'!$G$1=3,'DDR3 Spec'!AA13,IF('DDR3 Config'!$G$1=4,'DDR3 Spec'!AL13,'DDR3 Spec'!AW13)))) -> 15 | F51: =IF('DDR3 Config'!$G$1=1,'DDR3 Spec'!F13,IF('DDR3 Config'!$G$1=2,'DDR3 Spec'!Q13,IF('DDR3 Config'!$G$1=3,'DDR3 Spec'!AB13,IF('DDR3 Config'!$G$1=4,'DDR3 Spec'!AM13,'DDR3 Spec'!AX13)))) -> na | G51: =IF('DDR3 Config'!$G$1=1,'DDR3 Spec'!G13,IF('DDR3 Config'!$G$1=2,'DDR3 Spec'!R13,IF('DDR3 Config'!$G$1=3,'DDR3 Spec'!AC13,IF('DDR3 Config'!$G$1=4,'DDR3 Spec'!AN13,'DDR3 Spec'!AY13)))) -> 15 | H51: =IF('DDR3 Config'!$G$1=1,'DDR3 Spec'!H13,IF('DDR3 Config'!$G$1=2,'DDR3 Spec'!S13,IF('DDR3 Config'!$G$1=3,'DDR3 Spec'!AD13,IF('DDR3 Config'!$G$1=4,'DDR3 Spec'!AO13,'DDR3 Spec'!AZ13)))) -> na | I51: =IF('DDR3 Config'!$G$1=1,'DDR3 Spec'!I13,IF('DDR3 Config'!$G$1=2,'DDR3 Spec'!T13,IF('DDR3 Config'!$G$1=3,'DDR3 Spec'!AE13,IF('DDR3 Config'!$G$1=4,'DDR3 Spec'!AP13,'DDR3 Spec'!BA13)))) -> 15 | J51: =IF('DDR3 Config'!$G$1=1,'DDR3 Spec'!J13,IF('DDR3 Config'!$G$1=2,'DDR3 Spec'!U13,IF('DDR3 Config'!$G$1=3,'DDR3 Spec'!AF13,IF('DDR3 Config'!$G$1=4,'DDR3 Spec'!AQ13,'DDR3 Spec'!BB13)))) -> 15 | K51: =IF('DDR3 Config'!$G$1=1,'DDR3 Spec'!K13,IF('DDR3 Config'!$G$1=2,'DDR3 Spec'!V13,IF('DDR3 Config'!$G$1=3,'DDR3 Spec'!AG13,IF('DDR3 Config'!$G$1=4,'DDR3 Spec'!AR13,'DDR3 Spec'!BC13)))) -> 15 | L51: =IF('DDR3 Config'!$G$1=1,'DDR3 Spec'!L13,IF('DDR3 Config'!$G$1=2,'DDR3 Spec'!W13,IF('DDR3 Config'!$G$1=3,'DDR3 Spec'!AH13,IF('DDR3 Config'!$G$1=4,'DDR3 Spec'!AS13,'DDR3 Spec'!BD13)))) -> na | M51: =IF('DDR3 Config'!$G$1=1,'DDR3 Spec'!M13,IF('DDR3 Config'!$G$1=2,'DDR3 Spec'!X13,IF('DDR3 Config'!$G$1=3,'DDR3 Spec'!AI13,IF('DDR3 Config'!$G$1=4,'DDR3 Spec'!AT13,'DDR3 Spec'!BE13)))) -> na | W51: =HLOOKUP($W$43,$D$43:$M$77,9) -> 15
D52: =IF('DDR3 Config'!$G$1=1,'DDR3 Spec'!D14,IF('DDR3 Config'!$G$1=2,'DDR3 Spec'!O14,IF('DDR3 Config'!$G$1=3,'DDR3 Spec'!Z14,IF('DDR3 Config'!$G$1=4,'DDR3 Spec'!AK14,'DDR3 Spec'!AV14)))) -> na | E52: =IF('DDR3 Config'!$G$1=1,'DDR3 Spec'!E14,IF('DDR3 Config'!$G$1=2,'DDR3 Spec'!P14,IF('DDR3 Config'!$G$1=3,'DDR3 Spec'!AA14,IF('DDR3 Config'!$G$1=4,'DDR3 Spec'!AL14,'DDR3 Spec'!AW14)))) -> 15 | F52: =IF('DDR3 Config'!$G$1=1,'DDR3 Spec'!F14,IF('DDR3 Config'!$G$1=2,'DDR3 Spec'!Q14,IF('DDR3 Config'!$G$1=3,'DDR3 Spec'!AB14,IF('DDR3 Config'!$G$1=4,'DDR3 Spec'!AM14,'DDR3 Spec'!AX14)))) -> na | G52: =IF('DDR3 Config'!$G$1=1,'DDR3 Spec'!G14,IF('DDR3 Config'!$G$1=2,'DDR3 Spec'!R14,IF('DDR3 Config'!$G$1=3,'DDR3 Spec'!AC14,IF('DDR3 Config'!$G$1=4,'DDR3 Spec'!AN14,'DDR3 Spec'!AY14)))) -> 15 | H52: =IF('DDR3 Config'!$G$1=1,'DDR3 Spec'!H14,IF('DDR3 Config'!$G$1=2,'DDR3 Spec'!S14,IF('DDR3 Config'!$G$1=3,'DDR3 Spec'!AD14,IF('DDR3 Config'!$G$1=4,'DDR3 Spec'!AO14,'DDR3 Spec'!AZ14)))) -> na | I52: =IF('DDR3 Config'!$G$1=1,'DDR3 Spec'!I14,IF('DDR3 Config'!$G$1=2,'DDR3 Spec'!T14,IF('DDR3 Config'!$G$1=3,'DDR3 Spec'!AE14,IF('DDR3 Config'!$G$1=4,'DDR3 Spec'!AP14,'DDR3 Spec'!BA14)))) -> 15 | J52: =IF('DDR3 Config'!$G$1=1,'DDR3 Spec'!J14,IF('DDR3 Config'!$G$1=2,'DDR3 Spec'!U14,IF('DDR3 Config'!$G$1=3,'DDR3 Spec'!AF14,IF('DDR3 Config'!$G$1=4,'DDR3 Spec'!AQ14,'DDR3 Spec'!BB14)))) -> 15 | K52: =IF('DDR3 Config'!$G$1=1,'DDR3 Spec'!K14,IF('DDR3 Config'!$G$1=2,'DDR3 Spec'!V14,IF('DDR3 Config'!$G$1=3,'DDR3 Spec'!AG14,IF('DDR3 Config'!$G$1=4,'DDR3 Spec'!AR14,'DDR3 Spec'!BC14)))) -> 15 | L52: =IF('DDR3 Config'!$G$1=1,'DDR3 Spec'!L14,IF('DDR3 Config'!$G$1=2,'DDR3 Spec'!W14,IF('DDR3 Config'!$G$1=3,'DDR3 Spec'!AH14,IF('DDR3 Config'!$G$1=4,'DDR3 Spec'!AS14,'DDR3 Spec'!BD14)))) -> na | M52: =IF('DDR3 Config'!$G$1=1,'DDR3 Spec'!M14,IF('DDR3 Config'!$G$1=2,'DDR3 Spec'!X14,IF('DDR3 Config'!$G$1=3,'DDR3 Spec'!AI14,IF('DDR3 Config'!$G$1=4,'DDR3 Spec'!AT14,'DDR3 Spec'!BE14)))) -> na | W52: =HLOOKUP($W$43,$D$43:$M$77,10) -> 15
C53: IDD2N | D53: =IF('DDR3 Config'!$G$1=1,'DDR3 Spec'!D15,IF('DDR3 Config'!$G$1=2,'DDR3 Spec'!O15,IF('DDR3 Config'!$G$1=3,'DDR3 Spec'!Z15,IF('DDR3 Config'!$G$1=4,'DDR3 Spec'!AK15,'DDR3 Spec'!AV15)))) -> na | E53: =IF('DDR3 Config'!$G$1=1,'DDR3 Spec'!E15,IF('DDR3 Config'!$G$1=2,'DDR3 Spec'!P15,IF('DDR3 Config'!$G$1=3,'DDR3 Spec'!AA15,IF('DDR3 Config'!$G$1=4,'DDR3 Spec'!AL15,'DDR3 Spec'!AW15)))) -> 23 | F53: =IF('DDR3 Config'!$G$1=1,'DDR3 Spec'!F15,IF('DDR3 Config'!$G$1=2,'DDR3 Spec'!Q15,IF('DDR3 Config'!$G$1=3,'DDR3 Spec'!AB15,IF('DDR3 Config'!$G$1=4,'DDR3 Spec'!AM15,'DDR3 Spec'!AX15)))) -> na | G53: =IF('DDR3 Config'!$G$1=1,'DDR3 Spec'!G15,IF('DDR3 Config'!$G$1=2,'DDR3 Spec'!R15,IF('DDR3 Config'!$G$1=3,'DDR3 Spec'!AC15,IF('DDR3 Config'!$G$1=4,'DDR3 Spec'!AN15,'DDR3 Spec'!AY15)))) -> 23 | H53: =IF('DDR3 Config'!$G$1=1,'DDR3 Spec'!H15,IF('DDR3 Config'!$G$1=2,'DDR3 Spec'!S15,IF('DDR3 Config'!$G$1=3,'DDR3 Spec'!AD15,IF('DDR3 Config'!$G$1=4,'DDR3 Spec'!AO15,'DDR3 Spec'!AZ15)))) -> na | I53: =IF('DDR3 Config'!$G$1=1,'DDR3 Spec'!I15,IF('DDR3 Config'!$G$1=2,'DDR3 Spec'!T15,IF('DDR3 Config'!$G$1=3,'DDR3 Spec'!AE15,IF('DDR3 Config'!$G$1=4,'DDR3 Spec'!AP15,'DDR3 Spec'!BA15)))) -> 23 | J53: =IF('DDR3 Config'!$G$1=1,'DDR3 Spec'!J15,IF('DDR3 Config'!$G$1=2,'DDR3 Spec'!U15,IF('DDR3 Config'!$G$1=3,'DDR3 Spec'!AF15,IF('DDR3 Config'!$G$1=4,'DDR3 Spec'!AQ15,'DDR3 Spec'!BB15)))) -> 23 | K53: =IF('DDR3 Config'!$G$1=1,'DDR3 Spec'!K15,IF('DDR3 Config'!$G$1=2,'DDR3 Spec'!V15,IF('DDR3 Config'!$G$1=3,'DDR3 Spec'!AG15,IF('DDR3 Config'!$G$1=4,'DDR3 Spec'!AR15,'DDR3 Spec'!BC15)))) -> 23 | L53: =IF('DDR3 Config'!$G$1=1,'DDR3 Spec'!L15,IF('DDR3 Config'!$G$1=2,'DDR3 Spec'!W15,IF('DDR3 Config'!$G$1=3,'DDR3 Spec'!AH15,IF('DDR3 Config'!$G$1=4,'DDR3 Spec'!AS15,'DDR3 Spec'!BD15)))) -> na | M53: =IF('DDR3 Config'!$G$1=1,'DDR3 Spec'!M15,IF('DDR3 Config'!$G$1=2,'DDR3 Spec'!X15,IF('DDR3 Config'!$G$1=3,'DDR3 Spec'!AI15,IF('DDR3 Config'!$G$1=4,'DDR3 Spec'!AT15,'DDR3 Spec'!BE15)))) -> na | W53: =HLOOKUP($W$43,$D$43:$M$77,11) -> 23
D54: =IF('DDR3 Config'!$G$1=1,'DDR3 Spec'!D16,IF('DDR3 Config'!$G$1=2,'DDR3 Spec'!O16,IF('DDR3 Config'!$G$1=3,'DDR3 Spec'!Z16,IF('DDR3 Config'!$G$1=4,'DDR3 Spec'!AK16,'DDR3 Spec'!AV16)))) -> na | E54: =IF('DDR3 Config'!$G$1=1,'DDR3 Spec'!E16,IF('DDR3 Config'!$G$1=2,'DDR3 Spec'!P16,IF('DDR3 Config'!$G$1=3,'DDR3 Spec'!AA16,IF('DDR3 Config'!$G$1=4,'DDR3 Spec'!AL16,'DDR3 Spec'!AW16)))) -> 23 | F54: =IF('DDR3 Config'!$G$1=1,'DDR3 Spec'!F16,IF('DDR3 Config'!$G$1=2,'DDR3 Spec'!Q16,IF('DDR3 Config'!$G$1=3,'DDR3 Spec'!AB16,IF('DDR3 Config'!$G$1=4,'DDR3 Spec'!AM16,'DDR3 Spec'!AX16)))) -> na | G54: =IF('DDR3 Config'!$G$1=1,'DDR3 Spec'!G16,IF('DDR3 Config'!$G$1=2,'DDR3 Spec'!R16,IF('DDR3 Config'!$G$1=3,'DDR3 Spec'!AC16,IF('DDR3 Config'!$G$1=4,'DDR3 Spec'!AN16,'DDR3 Spec'!AY16)))) -> 23 | H54: =IF('DDR3 Config'!$G$1=1,'DDR3 Spec'!H16,IF('DDR3 Config'!$G$1=2,'DDR3 Spec'!S16,IF('DDR3 Config'!$G$1=3,'DDR3 Spec'!AD16,IF('DDR3 Config'!$G$1=4,'DDR3 Spec'!AO16,'DDR3 Spec'!AZ16)))) -> na | I54: =IF('DDR3 Config'!$G$1=1,'DDR3 Spec'!I16,IF('DDR3 Config'!$G$1=2,'DDR3 Spec'!T16,IF('DDR3 Config'!$G$1=3,'DDR3 Spec'!AE16,IF('DDR3 Config'!$G$1=4,'DDR3 Spec'!AP16,'DDR3 Spec'!BA16)))) -> 23 | J54: =IF('DDR3 Config'!$G$1=1,'DDR3 Spec'!J16,IF('DDR3 Config'!$G$1=2,'DDR3 Spec'!U16,IF('DDR3 Config'!$G$1=3,'DDR3 Spec'!AF16,IF('DDR3 Config'!$G$1=4,'DDR3 Spec'!AQ16,'DDR3 Spec'!BB16)))) -> 23 | K54: =IF('DDR3 Config'!$G$1=1,'DDR3 Spec'!K16,IF('DDR3 Config'!$G$1=2,'DDR3 Spec'!V16,IF('DDR3 Config'!$G$1=3,'DDR3 Spec'!AG16,IF('DDR3 Config'!$G$1=4,'DDR3 Spec'!AR16,'DDR3 Spec'!BC16)))) -> 23 | L54: =IF('DDR3 Config'!$G$1=1,'DDR3 Spec'!L16,IF('DDR3 Config'!$G$1=2,'DDR3 Spec'!W16,IF('DDR3 Config'!$G$1=3,'DDR3 Spec'!AH16,IF('DDR3 Config'!$G$1=4,'DDR3 Spec'!AS16,'DDR3 Spec'!BD16)))) -> na | M54: =IF('DDR3 Config'!$G$1=1,'DDR3 Spec'!M16,IF('DDR3 Config'!$G$1=2,'DDR3 Spec'!X16,IF('DDR3 Config'!$G$1=3,'DDR3 Spec'!AI16,IF('DDR3 Config'!$G$1=4,'DDR3 Spec'!AT16,'DDR3 Spec'!BE16)))) -> na | W54: =HLOOKUP($W$43,$D$43:$M$77,12) -> 23
C55: IDD3P | D55: =IF('DDR3 Config'!$G$1=1,'DDR3 Spec'!D17,IF('DDR3 Config'!$G$1=2,'DDR3 Spec'!O17,IF('DDR3 Config'!$G$1=3,'DDR3 Spec'!Z17,IF('DDR3 Config'!$G$1=4,'DDR3 Spec'!AK17,'DDR3 Spec'!AV17)))) -> na | E55: =IF('DDR3 Config'!$G$1=1,'DDR3 Spec'!E17,IF('DDR3 Config'!$G$1=2,'DDR3 Spec'!P17,IF('DDR3 Config'!$G$1=3,'DDR3 Spec'!AA17,IF('DDR3 Config'!$G$1=4,'DDR3 Spec'!AL17,'DDR3 Spec'!AW17)))) -> 17 | F55: =IF('DDR3 Config'!$G$1=1,'DDR3 Spec'!F17,IF('DDR3 Config'!$G$1=2,'DDR3 Spec'!Q17,IF('DDR3 Config'!$G$1=3,'DDR3 Spec'!AB17,IF('DDR3 Config'!$G$1=4,'DDR3 Spec'!AM17,'DDR3 Spec'!AX17)))) -> na | G55: =IF('DDR3 Config'!$G$1=1,'DDR3 Spec'!G17,IF('DDR3 Config'!$G$1=2,'DDR3 Spec'!R17,IF('DDR3 Config'!$G$1=3,'DDR3 Spec'!AC17,IF('DDR3 Config'!$G$1=4,'DDR3 Spec'!AN17,'DDR3 Spec'!AY17)))) -> 17 | H55: =IF('DDR3 Config'!$G$1=1,'DDR3 Spec'!H17,IF('DDR3 Config'!$G$1=2,'DDR3 Spec'!S17,IF('DDR3 Config'!$G$1=3,'DDR3 Spec'!AD17,IF('DDR3 Config'!$G$1=4,'DDR3 Spec'!AO17,'DDR3 Spec'!AZ17)))) -> na | I55: =IF('DDR3 Config'!$G$1=1,'DDR3 Spec'!I17,IF('DDR3 Config'!$G$1=2,'DDR3 Spec'!T17,IF('DDR3 Config'!$G$1=3,'DDR3 Spec'!AE17,IF('DDR3 Config'!$G$1=4,'DDR3 Spec'!AP17,'DDR3 Spec'!BA17)))) -> 17 | J55: =IF('DDR3 Config'!$G$1=1,'DDR3 Spec'!J17,IF('DDR3 Config'!$G$1=2,'DDR3 Spec'!U17,IF('DDR3 Config'!$G$1=3,'DDR3 Spec'!AF17,IF('DDR3 Config'!$G$1=4,'DDR3 Spec'!AQ17,'DDR3 Spec'!BB17)))) -> 17 | K55: =IF('DDR3 Config'!$G$1=1,'DDR3 Spec'!K17,IF('DDR3 Config'!$G$1=2,'DDR3 Spec'!V17,IF('DDR3 Config'!$G$1=3,'DDR3 Spec'!AG17,IF('DDR3 Config'!$G$1=4,'DDR3 Spec'!AR17,'DDR3 Spec'!BC17)))) -> 17 | L55: =IF('DDR3 Config'!$G$1=1,'DDR3 Spec'!L17,IF('DDR3 Config'!$G$1=2,'DDR3 Spec'!W17,IF('DDR3 Config'!$G$1=3,'DDR3 Spec'!AH17,IF('DDR3 Config'!$G$1=4,'DDR3 Spec'!AS17,'DDR3 Spec'!BD17)))) -> na | M55: =IF('DDR3 Config'!$G$1=1,'DDR3 Spec'!M17,IF('DDR3 Config'!$G$1=2,'DDR3 Spec'!X17,IF('DDR3 Config'!$G$1=3,'DDR3 Spec'!AI17,IF('DDR3 Config'!$G$1=4,'DDR3 Spec'!AT17,'DDR3 Spec'!BE17)))) -> na | W55: =HLOOKUP($W$43,$D$43:$M$77,13) -> 17
D56: =IF('DDR3 Config'!$G$1=1,'DDR3 Spec'!D18,IF('DDR3 Config'!$G$1=2,'DDR3 Spec'!O18,IF('DDR3 Config'!$G$1=3,'DDR3 Spec'!Z18,IF('DDR3 Config'!$G$1=4,'DDR3 Spec'!AK18,'DDR3 Spec'!AV18)))) -> na | E56: =IF('DDR3 Config'!$G$1=1,'DDR3 Spec'!E18,IF('DDR3 Config'!$G$1=2,'DDR3 Spec'!P18,IF('DDR3 Config'!$G$1=3,'DDR3 Spec'!AA18,IF('DDR3 Config'!$G$1=4,'DDR3 Spec'!AL18,'DDR3 Spec'!AW18)))) -> 17 | F56: =IF('DDR3 Config'!$G$1=1,'DDR3 Spec'!F18,IF('DDR3 Config'!$G$1=2,'DDR3 Spec'!Q18,IF('DDR3 Config'!$G$1=3,'DDR3 Spec'!AB18,IF('DDR3 Config'!$G$1=4,'DDR3 Spec'!AM18,'DDR3 Spec'!AX18)))) -> na | G56: =IF('DDR3 Config'!$G$1=1,'DDR3 Spec'!G18,IF('DDR3 Config'!$G$1=2,'DDR3 Spec'!R18,IF('DDR3 Config'!$G$1=3,'DDR3 Spec'!AC18,IF('DDR3 Config'!$G$1=4,'DDR3 Spec'!AN18,'DDR3 Spec'!AY18)))) -> 17 | H56: =IF('DDR3 Config'!$G$1=1,'DDR3 Spec'!H18,IF('DDR3 Config'!$G$1=2,'DDR3 Spec'!S18,IF('DDR3 Config'!$G$1=3,'DDR3 Spec'!AD18,IF('DDR3 Config'!$G$1=4,'DDR3 Spec'!AO18,'DDR3 Spec'!AZ18)))) -> na | I56: =IF('DDR3 Config'!$G$1=1,'DDR3 Spec'!I18,IF('DDR3 Config'!$G$1=2,'DDR3 Spec'!T18,IF('DDR3 Config'!$G$1=3,'DDR3 Spec'!AE18,IF('DDR3 Config'!$G$1=4,'DDR3 Spec'!AP18,'DDR3 Spec'!BA18)))) -> 17 | J56: =IF('DDR3 Config'!$G$1=1,'DDR3 Spec'!J18,IF('DDR3 Config'!$G$1=2,'DDR3 Spec'!U18,IF('DDR3 Config'!$G$1=3,'DDR3 Spec'!AF18,IF('DDR3 Config'!$G$1=4,'DDR3 Spec'!AQ18,'DDR3 Spec'!BB18)))) -> 17 | K56: =IF('DDR3 Config'!$G$1=1,'DDR3 Spec'!K18,IF('DDR3 Config'!$G$1=2,'DDR3 Spec'!V18,IF('DDR3 Config'!$G$1=3,'DDR3 Spec'!AG18,IF('DDR3 Config'!$G$1=4,'DDR3 Spec'!AR18,'DDR3 Spec'!BC18)))) -> 17 | L56: =IF('DDR3 Config'!$G$1=1,'DDR3 Spec'!L18,IF('DDR3 Config'!$G$1=2,'DDR3 Spec'!W18,IF('DDR3 Config'!$G$1=3,'DDR3 Spec'!AH18,IF('DDR3 Config'!$G$1=4,'DDR3 Spec'!AS18,'DDR3 Spec'!BD18)))) -> na | M56: =IF('DDR3 Config'!$G$1=1,'DDR3 Spec'!M18,IF('DDR3 Config'!$G$1=2,'DDR3 Spec'!X18,IF('DDR3 Config'!$G$1=3,'DDR3 Spec'!AI18,IF('DDR3 Config'!$G$1=4,'DDR3 Spec'!AT18,'DDR3 Spec'!BE18)))) -> na | W56: =HLOOKUP($W$43,$D$43:$M$77,14) -> 17
C57: IDD3N | D57: =IF('DDR3 Config'!$G$1=1,'DDR3 Spec'!D19,IF('DDR3 Config'!$G$1=2,'DDR3 Spec'!O19,IF('DDR3 Config'!$G$1=3,'DDR3 Spec'!Z19,IF('DDR3 Config'!$G$1=4,'DDR3 Spec'!AK19,'DDR3 Spec'!AV19)))) -> na | E57: =IF('DDR3 Config'!$G$1=1,'DDR3 Spec'!E19,IF('DDR3 Config'!$G$1=2,'DDR3 Spec'!P19,IF('DDR3 Config'!$G$1=3,'DDR3 Spec'!AA19,IF('DDR3 Config'!$G$1=4,'DDR3 Spec'!AL19,'DDR3 Spec'!AW19)))) -> 40 | F57: =IF('DDR3 Config'!$G$1=1,'DDR3 Spec'!F19,IF('DDR3 Config'!$G$1=2,'DDR3 Spec'!Q19,IF('DDR3 Config'!$G$1=3,'DDR3 Spec'!AB19,IF('DDR3 Config'!$G$1=4,'DDR3 Spec'!AM19,'DDR3 Spec'!AX19)))) -> na | G57: =IF('DDR3 Config'!$G$1=1,'DDR3 Spec'!G19,IF('DDR3 Config'!$G$1=2,'DDR3 Spec'!R19,IF('DDR3 Config'!$G$1=3,'DDR3 Spec'!AC19,IF('DDR3 Config'!$G$1=4,'DDR3 Spec'!AN19,'DDR3 Spec'!AY19)))) -> 37 | H57: =IF('DDR3 Config'!$G$1=1,'DDR3 Spec'!H19,IF('DDR3 Config'!$G$1=2,'DDR3 Spec'!S19,IF('DDR3 Config'!$G$1=3,'DDR3 Spec'!AD19,IF('DDR3 Config'!$G$1=4,'DDR3 Spec'!AO19,'DDR3 Spec'!AZ19)))) -> na | I57: =IF('DDR3 Config'!$G$1=1,'DDR3 Spec'!I19,IF('DDR3 Config'!$G$1=2,'DDR3 Spec'!T19,IF('DDR3 Config'!$G$1=3,'DDR3 Spec'!AE19,IF('DDR3 Config'!$G$1=4,'DDR3 Spec'!AP19,'DDR3 Spec'!BA19)))) -> 35 | J57: =IF('DDR3 Config'!$G$1=1,'DDR3 Spec'!J19,IF('DDR3 Config'!$G$1=2,'DDR3 Spec'!U19,IF('DDR3 Config'!$G$1=3,'DDR3 Spec'!AF19,IF('DDR3 Config'!$G$1=4,'DDR3 Spec'!AQ19,'DDR3 Spec'!BB19)))) -> 33 | K57: =IF('DDR3 Config'!$G$1=1,'DDR3 Spec'!K19,IF('DDR3 Config'!$G$1=2,'DDR3 Spec'!V19,IF('DDR3 Config'!$G$1=3,'DDR3 Spec'!AG19,IF('DDR3 Config'!$G$1=4,'DDR3 Spec'!AR19,'DDR3 Spec'!BC19)))) -> 31 | L57: =IF('DDR3 Config'!$G$1=1,'DDR3 Spec'!L19,IF('DDR3 Config'!$G$1=2,'DDR3 Spec'!W19,IF('DDR3 Config'!$G$1=3,'DDR3 Spec'!AH19,IF('DDR3 Config'!$G$1=4,'DDR3 Spec'!AS19,'DDR3 Spec'!BD19)))) -> na | M57: =IF('DDR3 Config'!$G$1=1,'DDR3 Spec'!M19,IF('DDR3 Config'!$G$1=2,'DDR3 Spec'!X19,IF('DDR3 Config'!$G$1=3,'DDR3 Spec'!AI19,IF('DDR3 Config'!$G$1=4,'DDR3 Spec'!AT19,'DDR3 Spec'!BE19)))) -> na | W57: =HLOOKUP($W$43,$D$43:$M$77,15) -> 40
D58: =IF('DDR3 Config'!$G$1=1,'DDR3 Spec'!D20,IF('DDR3 Config'!$G$1=2,'DDR3 Spec'!O20,IF('DDR3 Config'!$G$1=3,'DDR3 Spec'!Z20,IF('DDR3 Config'!$G$1=4,'DDR3 Spec'!AK20,'DDR3 Spec'!AV20)))) -> na | E58: =IF('DDR3 Config'!$G$1=1,'DDR3 Spec'!E20,IF('DDR3 Config'!$G$1=2,'DDR3 Spec'!P20,IF('DDR3 Config'!$G$1=3,'DDR3 Spec'!AA20,IF('DDR3 Config'!$G$1=4,'DDR3 Spec'!AL20,'DDR3 Spec'!AW20)))) -> 43 | F58: =IF('DDR3 Config'!$G$1=1,'DDR3 Spec'!F20,IF('DDR3 Config'!$G$1=2,'DDR3 Spec'!Q20,IF('DDR3 Config'!$G$1=3,'DDR3 Spec'!AB20,IF('DDR3 Config'!$G$1=4,'DDR3 Spec'!AM20,'DDR3 Spec'!AX20)))) -> na | G58: =IF('DDR3 Config'!$G$1=1,'DDR3 Spec'!G20,IF('DDR3 Config'!$G$1=2,'DDR3 Spec'!R20,IF('DDR3 Config'!$G$1=3,'DDR3 Spec'!AC20,IF('DDR3 Config'!$G$1=4,'DDR3 Spec'!AN20,'DDR3 Spec'!AY20)))) -> 38 | H58: =IF('DDR3 Config'!$G$1=1,'DDR3 Spec'!H20,IF('DDR3 Config'!$G$1=2,'DDR3 Spec'!S20,IF('DDR3 Config'!$G$1=3,'DDR3 Spec'!AD20,IF('DDR3 Config'!$G$1=4,'DDR3 Spec'!AO20,'DDR3 Spec'!AZ20)))) -> na | I58: =IF('DDR3 Config'!$G$1=1,'DDR3 Spec'!I20,IF('DDR3 Config'!$G$1=2,'DDR3 Spec'!T20,IF('DDR3 Config'!$G$1=3,'DDR3 Spec'!AE20,IF('DDR3 Config'!$G$1=4,'DDR3 Spec'!AP20,'DDR3 Spec'!BA20)))) -> 37 | J58: =IF('DDR3 Config'!$G$1=1,'DDR3 Spec'!J20,IF('DDR3 Config'!$G$1=2,'DDR3 Spec'!U20,IF('DDR3 Config'!$G$1=3,'DDR3 Spec'!AF20,IF('DDR3 Config'!$G$1=4,'DDR3 Spec'!AQ20,'DDR3 Spec'!BB20)))) -> 36 | K58: =IF('DDR3 Config'!$G$1=1,'DDR3 Spec'!K20,IF('DDR3 Config'!$G$1=2,'DDR3 Spec'!V20,IF('DDR3 Config'!$G$1=3,'DDR3 Spec'!AG20,IF('DDR3 Config'!$G$1=4,'DDR3 Spec'!AR20,'DDR3 Spec'!BC20)))) -> 33 | L58: =IF('DDR3 Config'!$G$1=1,'DDR3 Spec'!L20,IF('DDR3 Config'!$G$1=2,'DDR3 Spec'!W20,IF('DDR3 Config'!$G$1=3,'DDR3 Spec'!AH20,IF('DDR3 Config'!$G$1=4,'DDR3 Spec'!AS20,'DDR3 Spec'!BD20)))) -> na | M58: =IF('DDR3 Config'!$G$1=1,'DDR3 Spec'!M20,IF('DDR3 Config'!$G$1=2,'DDR3 Spec'!X20,IF('DDR3 Config'!$G$1=3,'DDR3 Spec'!AI20,IF('DDR3 Config'!$G$1=4,'DDR3 Spec'!AT20,'DDR3 Spec'!BE20)))) -> na | W58: =HLOOKUP($W$43,$D$43:$M$77,16) -> 43
C59: IDD4R | D59: =IF('DDR3 Config'!$G$1=1,'DDR3 Spec'!D21,IF('DDR3 Config'!$G$1=2,'DDR3 Spec'!O21,IF('DDR3 Config'!$G$1=3,'DDR3 Spec'!Z21,IF('DDR3 Config'!$G$1=4,'DDR3 Spec'!AK21,'DDR3 Spec'!AV21)))) -> na | E59: =IF('DDR3 Config'!$G$1=1,'DDR3 Spec'!E21,IF('DDR3 Config'!$G$1=2,'DDR3 Spec'!P21,IF('DDR3 Config'!$G$1=3,'DDR3 Spec'!AA21,IF('DDR3 Config'!$G$1=4,'DDR3 Spec'!AL21,'DDR3 Spec'!AW21)))) -> 125 | F59: =IF('DDR3 Config'!$G$1=1,'DDR3 Spec'!F21,IF('DDR3 Config'!$G$1=2,'DDR3 Spec'!Q21,IF('DDR3 Config'!$G$1=3,'DDR3 Spec'!AB21,IF('DDR3 Config'!$G$1=4,'DDR3 Spec'!AM21,'DDR3 Spec'!AX21)))) -> na | G59: =IF('DDR3 Config'!$G$1=1,'DDR3 Spec'!G21,IF('DDR3 Config'!$G$1=2,'DDR3 Spec'!R21,IF('DDR3 Config'!$G$1=3,'DDR3 Spec'!AC21,IF('DDR3 Config'!$G$1=4,'DDR3 Spec'!AN21,'DDR3 Spec'!AY21)))) -> 110 | H59: =IF('DDR3 Config'!$G$1=1,'DDR3 Spec'!H21,IF('DDR3 Config'!$G$1=2,'DDR3 Spec'!S21,IF('DDR3 Config'!$G$1=3,'DDR3 Spec'!AD21,IF('DDR3 Config'!$G$1=4,'DDR3 Spec'!AO21,'DDR3 Spec'!AZ21)))) -> na | I59: =IF('DDR3 Config'!$G$1=1,'DDR3 Spec'!I21,IF('DDR3 Config'!$G$1=2,'DDR3 Spec'!T21,IF('DDR3 Config'!$G$1=3,'DDR3 Spec'!AE21,IF('DDR3 Config'!$G$1=4,'DDR3 Spec'!AP21,'DDR3 Spec'!BA21)))) -> 100 | J59: =IF('DDR3 Config'!$G$1=1,'DDR3 Spec'!J21,IF('DDR3 Config'!$G$1=2,'DDR3 Spec'!U21,IF('DDR3 Config'!$G$1=3,'DDR3 Spec'!AF21,IF('DDR3 Config'!$G$1=4,'DDR3 Spec'!AQ21,'DDR3 Spec'!BB21)))) -> 88 | K59: =IF('DDR3 Config'!$G$1=1,'DDR3 Spec'!K21,IF('DDR3 Config'!$G$1=2,'DDR3 Spec'!V21,IF('DDR3 Config'!$G$1=3,'DDR3 Spec'!AG21,IF('DDR3 Config'!$G$1=4,'DDR3 Spec'!AR21,'DDR3 Spec'!BC21)))) -> 74 | L59: =IF('DDR3 Config'!$G$1=1,'DDR3 Spec'!L21,IF('DDR3 Config'!$G$1=2,'DDR3 Spec'!W21,IF('DDR3 Config'!$G$1=3,'DDR3 Spec'!AH21,IF('DDR3 Config'!$G$1=4,'DDR3 Spec'!AS21,'DDR3 Spec'!BD21)))) -> na | M59: =IF('DDR3 Config'!$G$1=1,'DDR3 Spec'!M21,IF('DDR3 Config'!$G$1=2,'DDR3 Spec'!X21,IF('DDR3 Config'!$G$1=3,'DDR3 Spec'!AI21,IF('DDR3 Config'!$G$1=4,'DDR3 Spec'!AT21,'DDR3 Spec'!BE21)))) -> na | W59: =HLOOKUP($W$43,$D$43:$M$77,17) -> 125
D60: =IF('DDR3 Config'!$G$1=1,'DDR3 Spec'!D22,IF('DDR3 Config'!$G$1=2,'DDR3 Spec'!O22,IF('DDR3 Config'!$G$1=3,'DDR3 Spec'!Z22,IF('DDR3 Config'!$G$1=4,'DDR3 Spec'!AK22,'DDR3 Spec'!AV22)))) -> na | E60: =IF('DDR3 Config'!$G$1=1,'DDR3 Spec'!E22,IF('DDR3 Config'!$G$1=2,'DDR3 Spec'!P22,IF('DDR3 Config'!$G$1=3,'DDR3 Spec'!AA22,IF('DDR3 Config'!$G$1=4,'DDR3 Spec'!AL22,'DDR3 Spec'!AW22)))) -> 125 | F60: =IF('DDR3 Config'!$G$1=1,'DDR3 Spec'!F22,IF('DDR3 Config'!$G$1=2,'DDR3 Spec'!Q22,IF('DDR3 Config'!$G$1=3,'DDR3 Spec'!AB22,IF('DDR3 Config'!$G$1=4,'DDR3 Spec'!AM22,'DDR3 Spec'!AX22)))) -> na | G60: =IF('DDR3 Config'!$G$1=1,'DDR3 Spec'!G22,IF('DDR3 Config'!$G$1=2,'DDR3 Spec'!R22,IF('DDR3 Config'!$G$1=3,'DDR3 Spec'!AC22,IF('DDR3 Config'!$G$1=4,'DDR3 Spec'!AN22,'DDR3 Spec'!AY22)))) -> 110 | H60: =IF('DDR3 Config'!$G$1=1,'DDR3 Spec'!H22,IF('DDR3 Config'!$G$1=2,'DDR3 Spec'!S22,IF('DDR3 Config'!$G$1=3,'DDR3 Spec'!AD22,IF('DDR3 Config'!$G$1=4,'DDR3 Spec'!AO22,'DDR3 Spec'!AZ22)))) -> na | I60: =IF('DDR3 Config'!$G$1=1,'DDR3 Spec'!I22,IF('DDR3 Config'!$G$1=2,'DDR3 Spec'!T22,IF('DDR3 Config'!$G$1=3,'DDR3 Spec'!AE22,IF('DDR3 Config'!$G$1=4,'DDR3 Spec'!AP22,'DDR3 Spec'!BA22)))) -> 100 | J60: =IF('DDR3 Config'!$G$1=1,'DDR3 Spec'!J22,IF('DDR3 Config'!$G$1=2,'DDR3 Spec'!U22,IF('DDR3 Config'!$G$1=3,'DDR3 Spec'!AF22,IF('DDR3 Config'!$G$1=4,'DDR3 Spec'!AQ22,'DDR3 Spec'!BB22)))) -> 88 | K60: =IF('DDR3 Config'!$G$1=1,'DDR3 Spec'!K22,IF('DDR3 Config'!$G$1=2,'DDR3 Spec'!V22,IF('DDR3 Config'!$G$1=3,'DDR3 Spec'!AG22,IF('DDR3 Config'!$G$1=4,'DDR3 Spec'!AR22,'DDR3 Spec'!BC22)))) -> 74 | L60: =IF('DDR3 Config'!$G$1=1,'DDR3 Spec'!L22,IF('DDR3 Config'!$G$1=2,'DDR3 Spec'!W22,IF('DDR3 Config'!$G$1=3,'DDR3 Spec'!AH22,IF('DDR3 Config'!$G$1=4,'DDR3 Spec'!AS22,'DDR3 Spec'!BD22)))) -> na | M60: =IF('DDR3 Config'!$G$1=1,'DDR3 Spec'!M22,IF('DDR3 Config'!$G$1=2,'DDR3 Spec'!X22,IF('DDR3 Config'!$G$1=3,'DDR3 Spec'!AI22,IF('DDR3 Config'!$G$1=4,'DDR3 Spec'!AT22,'DDR3 Spec'!BE22)))) -> na | W60: =HLOOKUP($W$43,$D$43:$M$77,18) -> 125
D61: =IF('DDR3 Config'!$G$1=1,'DDR3 Spec'!D23,IF('DDR3 Config'!$G$1=2,'DDR3 Spec'!O23,IF('DDR3 Config'!$G$1=3,'DDR3 Spec'!Z23,IF('DDR3 Config'!$G$1=4,'DDR3 Spec'!AK23,'DDR3 Spec'!AV23)))) -> na | E61: =IF('DDR3 Config'!$G$1=1,'DDR3 Spec'!E23,IF('DDR3 Config'!$G$1=2,'DDR3 Spec'!P23,IF('DDR3 Config'!$G$1=3,'DDR3 Spec'!AA23,IF('DDR3 Config'!$G$1=4,'DDR3 Spec'!AL23,'DDR3 Spec'!AW23)))) -> 180 | F61: =IF('DDR3 Config'!$G$1=1,'DDR3 Spec'!F23,IF('DDR3 Config'!$G$1=2,'DDR3 Spec'!Q23,IF('DDR3 Config'!$G$1=3,'DDR3 Spec'!AB23,IF('DDR3 Config'!$G$1=4,'DDR3 Spec'!AM23,'DDR3 Spec'!AX23)))) -> na | G61: =IF('DDR3 Config'!$G$1=1,'DDR3 Spec'!G23,IF('DDR3 Config'!$G$1=2,'DDR3 Spec'!R23,IF('DDR3 Config'!$G$1=3,'DDR3 Spec'!AC23,IF('DDR3 Config'!$G$1=4,'DDR3 Spec'!AN23,'DDR3 Spec'!AY23)))) -> 155 | H61: =IF('DDR3 Config'!$G$1=1,'DDR3 Spec'!H23,IF('DDR3 Config'!$G$1=2,'DDR3 Spec'!S23,IF('DDR3 Config'!$G$1=3,'DDR3 Spec'!AD23,IF('DDR3 Config'!$G$1=4,'DDR3 Spec'!AO23,'DDR3 Spec'!AZ23)))) -> na | I61: =IF('DDR3 Config'!$G$1=1,'DDR3 Spec'!I23,IF('DDR3 Config'!$G$1=2,'DDR3 Spec'!T23,IF('DDR3 Config'!$G$1=3,'DDR3 Spec'!AE23,IF('DDR3 Config'!$G$1=4,'DDR3 Spec'!AP23,'DDR3 Spec'!BA23)))) -> 135 | J61: =IF('DDR3 Config'!$G$1=1,'DDR3 Spec'!J23,IF('DDR3 Config'!$G$1=2,'DDR3 Spec'!U23,IF('DDR3 Config'!$G$1=3,'DDR3 Spec'!AF23,IF('DDR3 Config'!$G$1=4,'DDR3 Spec'!AQ23,'DDR3 Spec'!BB23)))) -> 115 | K61: =IF('DDR3 Config'!$G$1=1,'DDR3 Spec'!K23,IF('DDR3 Config'!$G$1=2,'DDR3 Spec'!V23,IF('DDR3 Config'!$G$1=3,'DDR3 Spec'!AG23,IF('DDR3 Config'!$G$1=4,'DDR3 Spec'!AR23,'DDR3 Spec'!BC23)))) -> 95 | L61: =IF('DDR3 Config'!$G$1=1,'DDR3 Spec'!L23,IF('DDR3 Config'!$G$1=2,'DDR3 Spec'!W23,IF('DDR3 Config'!$G$1=3,'DDR3 Spec'!AH23,IF('DDR3 Config'!$G$1=4,'DDR3 Spec'!AS23,'DDR3 Spec'!BD23)))) -> na | M61: =IF('DDR3 Config'!$G$1=1,'DDR3 Spec'!M23,IF('DDR3 Config'!$G$1=2,'DDR3 Spec'!X23,IF('DDR3 Config'!$G$1=3,'DDR3 Spec'!AI23,IF('DDR3 Config'!$G$1=4,'DDR3 Spec'!AT23,'DDR3 Spec'!BE23)))) -> na | W61: =HLOOKUP($W$43,$D$43:$M$77,19) -> 180
C62: IDD4W | D62: =IF('DDR3 Config'!$G$1=1,'DDR3 Spec'!D24,IF('DDR3 Config'!$G$1=2,'DDR3 Spec'!O24,IF('DDR3 Config'!$G$1=3,'DDR3 Spec'!Z24,IF('DDR3 Config'!$G$1=4,'DDR3 Spec'!AK24,'DDR3 Spec'!AV24)))) -> na | E62: =IF('DDR3 Config'!$G$1=1,'DDR3 Spec'!E24,IF('DDR3 Config'!$G$1=2,'DDR3 Spec'!P24,IF('DDR3 Config'!$G$1=3,'DDR3 Spec'!AA24,IF('DDR3 Config'!$G$1=4,'DDR3 Spec'!AL24,'DDR3 Spec'!AW24)))) -> 126 | F62: =IF('DDR3 Config'!$G$1=1,'DDR3 Spec'!F24,IF('DDR3 Config'!$G$1=2,'DDR3 Spec'!Q24,IF('DDR3 Config'!$G$1=3,'DDR3 Spec'!AB24,IF('DDR3 Config'!$G$1=4,'DDR3 Spec'!AM24,'DDR3 Spec'!AX24)))) -> na | G62: =IF('DDR3 Config'!$G$1=1,'DDR3 Spec'!G24,IF('DDR3 Config'!$G$1=2,'DDR3 Spec'!R24,IF('DDR3 Config'!$G$1=3,'DDR3 Spec'!AC24,IF('DDR3 Config'!$G$1=4,'DDR3 Spec'!AN24,'DDR3 Spec'!AY24)))) -> 114 | H62: =IF('DDR3 Config'!$G$1=1,'DDR3 Spec'!H24,IF('DDR3 Config'!$G$1=2,'DDR3 Spec'!S24,IF('DDR3 Config'!$G$1=3,'DDR3 Spec'!AD24,IF('DDR3 Config'!$G$1=4,'DDR3 Spec'!AO24,'DDR3 Spec'!AZ24)))) -> na | I62: =IF('DDR3 Config'!$G$1=1,'DDR3 Spec'!I24,IF('DDR3 Config'!$G$1=2,'DDR3 Spec'!T24,IF('DDR3 Config'!$G$1=3,'DDR3 Spec'!AE24,IF('DDR3 Config'!$G$1=4,'DDR3 Spec'!AP24,'DDR3 Spec'!BA24)))) -> 103 | J62: =IF('DDR3 Config'!$G$1=1,'DDR3 Spec'!J24,IF('DDR3 Config'!$G$1=2,'DDR3 Spec'!U24,IF('DDR3 Config'!$G$1=3,'DDR3 Spec'!AF24,IF('DDR3 Config'!$G$1=4,'DDR3 Spec'!AQ24,'DDR3 Spec'!BB24)))) -> 91 | K62: =IF('DDR3 Config'!$G$1=1,'DDR3 Spec'!K24,IF('DDR3 Config'!$G$1=2,'DDR3 Spec'!V24,IF('DDR3 Config'!$G$1=3,'DDR3 Spec'!AG24,IF('DDR3 Config'!$G$1=4,'DDR3 Spec'!AR24,'DDR3 Spec'!BC24)))) -> 79 | L62: =IF('DDR3 Config'!$G$1=1,'DDR3 Spec'!L24,IF('DDR3 Config'!$G$1=2,'DDR3 Spec'!W24,IF('DDR3 Config'!$G$1=3,'DDR3 Spec'!AH24,IF('DDR3 Config'!$G$1=4,'DDR3 Spec'!AS24,'DDR3 Spec'!BD24)))) -> na | M62: =IF('DDR3 Config'!$G$1=1,'DDR3 Spec'!M24,IF('DDR3 Config'!$G$1=2,'DDR3 Spec'!X24,IF('DDR3 Config'!$G$1=3,'DDR3 Spec'!AI24,IF('DDR3 Config'!$G$1=4,'DDR3 Spec'!AT24,'DDR3 Spec'!BE24)))) -> na | W62: =HLOOKUP($W$43,$D$43:$M$77,20) -> 126
D63: =IF('DDR3 Config'!$G$1=1,'DDR3 Spec'!D25,IF('DDR3 Config'!$G$1=2,'DDR3 Spec'!O25,IF('DDR3 Config'!$G$1=3,'DDR3 Spec'!Z25,IF('DDR3 Config'!$G$1=4,'DDR3 Spec'!AK25,'DDR3 Spec'!AV25)))) -> na | E63: =IF('DDR3 Config'!$G$1=1,'DDR3 Spec'!E25,IF('DDR3 Config'!$G$1=2,'DDR3 Spec'!P25,IF('DDR3 Config'!$G$1=3,'DDR3 Spec'!AA25,IF('DDR3 Config'!$G$1=4,'DDR3 Spec'!AL25,'DDR3 Spec'!AW25)))) -> 126 | F63: =IF('DDR3 Config'!$G$1=1,'DDR3 Spec'!F25,IF('DDR3 Config'!$G$1=2,'DDR3 Spec'!Q25,IF('DDR3 Config'!$G$1=3,'DDR3 Spec'!AB25,IF('DDR3 Config'!$G$1=4,'DDR3 Spec'!AM25,'DDR3 Spec'!AX25)))) -> na | G63: =IF('DDR3 Config'!$G$1=1,'DDR3 Spec'!G25,IF('DDR3 Config'!$G$1=2,'DDR3 Spec'!R25,IF('DDR3 Config'!$G$1=3,'DDR3 Spec'!AC25,IF('DDR3 Config'!$G$1=4,'DDR3 Spec'!AN25,'DDR3 Spec'!AY25)))) -> 114 | H63: =IF('DDR3 Config'!$G$1=1,'DDR3 Spec'!H25,IF('DDR3 Config'!$G$1=2,'DDR3 Spec'!S25,IF('DDR3 Config'!$G$1=3,'DDR3 Spec'!AD25,IF('DDR3 Config'!$G$1=4,'DDR3 Spec'!AO25,'DDR3 Spec'!AZ25)))) -> na | I63: =IF('DDR3 Config'!$G$1=1,'DDR3 Spec'!I25,IF('DDR3 Config'!$G$1=2,'DDR3 Spec'!T25,IF('DDR3 Config'!$G$1=3,'DDR3 Spec'!AE25,IF('DDR3 Config'!$G$1=4,'DDR3 Spec'!AP25,'DDR3 Spec'!BA25)))) -> 103 | J63: =IF('DDR3 Config'!$G$1=1,'DDR3 Spec'!J25,IF('DDR3 Config'!$G$1=2,'DDR3 Spec'!U25,IF('DDR3 Config'!$G$1=3,'DDR3 Spec'!AF25,IF('DDR3 Config'!$G$1=4,'DDR3 Spec'!AQ25,'DDR3 Spec'!BB25)))) -> 91 | K63: =IF('DDR3 Config'!$G$1=1,'DDR3 Spec'!K25,IF('DDR3 Config'!$G$1=2,'DDR3 Spec'!V25,IF('DDR3 Config'!$G$1=3,'DDR3 Spec'!AG25,IF('DDR3 Config'!$G$1=4,'DDR3 Spec'!AR25,'DDR3 Spec'!BC25)))) -> 79 | L63: =IF('DDR3 Config'!$G$1=1,'DDR3 Spec'!L25,IF('DDR3 Config'!$G$1=2,'DDR3 Spec'!W25,IF('DDR3 Config'!$G$1=3,'DDR3 Spec'!AH25,IF('DDR3 Config'!$G$1=4,'DDR3 Spec'!AS25,'DDR3 Spec'!BD25)))) -> na | M63: =IF('DDR3 Config'!$G$1=1,'DDR3 Spec'!M25,IF('DDR3 Config'!$G$1=2,'DDR3 Spec'!X25,IF('DDR3 Config'!$G$1=3,'DDR3 Spec'!AI25,IF('DDR3 Config'!$G$1=4,'DDR3 Spec'!AT25,'DDR3 Spec'!BE25)))) -> na | W63: =HLOOKUP($W$43,$D$43:$M$77,21) -> 126
D64: =IF('DDR3 Config'!$G$1=1,'DDR3 Spec'!D26,IF('DDR3 Config'!$G$1=2,'DDR3 Spec'!O26,IF('DDR3 Config'!$G$1=3,'DDR3 Spec'!Z26,IF('DDR3 Config'!$G$1=4,'DDR3 Spec'!AK26,'DDR3 Spec'!AV26)))) -> na | E64: =IF('DDR3 Config'!$G$1=1,'DDR3 Spec'!E26,IF('DDR3 Config'!$G$1=2,'DDR3 Spec'!P26,IF('DDR3 Config'!$G$1=3,'DDR3 Spec'!AA26,IF('DDR3 Config'!$G$1=4,'DDR3 Spec'!AL26,'DDR3 Spec'!AW26)))) -> 184 | F64: =IF('DDR3 Config'!$G$1=1,'DDR3 Spec'!F26,IF('DDR3 Config'!$G$1=2,'DDR3 Spec'!Q26,IF('DDR3 Config'!$G$1=3,'DDR3 Spec'!AB26,IF('DDR3 Config'!$G$1=4,'DDR3 Spec'!AM26,'DDR3 Spec'!AX26)))) -> na | G64: =IF('DDR3 Config'!$G$1=1,'DDR3 Spec'!G26,IF('DDR3 Config'!$G$1=2,'DDR3 Spec'!R26,IF('DDR3 Config'!$G$1=3,'DDR3 Spec'!AC26,IF('DDR3 Config'!$G$1=4,'DDR3 Spec'!AN26,'DDR3 Spec'!AY26)))) -> 164 | H64: =IF('DDR3 Config'!$G$1=1,'DDR3 Spec'!H26,IF('DDR3 Config'!$G$1=2,'DDR3 Spec'!S26,IF('DDR3 Config'!$G$1=3,'DDR3 Spec'!AD26,IF('DDR3 Config'!$G$1=4,'DDR3 Spec'!AO26,'DDR3 Spec'!AZ26)))) -> na | I64: =IF('DDR3 Config'!$G$1=1,'DDR3 Spec'!I26,IF('DDR3 Config'!$G$1=2,'DDR3 Spec'!T26,IF('DDR3 Config'!$G$1=3,'DDR3 Spec'!AE26,IF('DDR3 Config'!$G$1=4,'DDR3 Spec'!AP26,'DDR3 Spec'!BA26)))) -> 146 | J64: =IF('DDR3 Config'!$G$1=1,'DDR3 Spec'!J26,IF('DDR3 Config'!$G$1=2,'DDR3 Spec'!U26,IF('DDR3 Config'!$G$1=3,'DDR3 Spec'!AF26,IF('DDR3 Config'!$G$1=4,'DDR3 Spec'!AQ26,'DDR3 Spec'!BB26)))) -> 127 | K64: =IF('DDR3 Config'!$G$1=1,'DDR3 Spec'!K26,IF('DDR3 Config'!$G$1=2,'DDR3 Spec'!V26,IF('DDR3 Config'!$G$1=3,'DDR3 Spec'!AG26,IF('DDR3 Config'!$G$1=4,'DDR3 Spec'!AR26,'DDR3 Spec'!BC26)))) -> 107 | L64: =IF('DDR3 Config'!$G$1=1,'DDR3 Spec'!L26,IF('DDR3 Config'!$G$1=2,'DDR3 Spec'!W26,IF('DDR3 Config'!$G$1=3,'DDR3 Spec'!AH26,IF('DDR3 Config'!$G$1=4,'DDR3 Spec'!AS26,'DDR3 Spec'!BD26)))) -> na | M64: =IF('DDR3 Config'!$G$1=1,'DDR3 Spec'!M26,IF('DDR3 Config'!$G$1=2,'DDR3 Spec'!X26,IF('DDR3 Config'!$G$1=3,'DDR3 Spec'!AI26,IF('DDR3 Config'!$G$1=4,'DDR3 Spec'!AT26,'DDR3 Spec'!BE26)))) -> na | W64: =HLOOKUP($W$43,$D$43:$M$77,22) -> 184
C65: IDD5A | D65: =IF('DDR3 Config'!$G$1=1,'DDR3 Spec'!D27,IF('DDR3 Config'!$G$1=2,'DDR3 Spec'!O27,IF('DDR3 Config'!$G$1=3,'DDR3 Spec'!Z27,IF('DDR3 Config'!$G$1=4,'DDR3 Spec'!AK27,'DDR3 Spec'!AV27)))) -> na | E65: =IF('DDR3 Config'!$G$1=1,'DDR3 Spec'!E27,IF('DDR3 Config'!$G$1=2,'DDR3 Spec'!P27,IF('DDR3 Config'!$G$1=3,'DDR3 Spec'!AA27,IF('DDR3 Config'!$G$1=4,'DDR3 Spec'!AL27,'DDR3 Spec'!AW27)))) -> 170 | F65: =IF('DDR3 Config'!$G$1=1,'DDR3 Spec'!F27,IF('DDR3 Config'!$G$1=2,'DDR3 Spec'!Q27,IF('DDR3 Config'!$G$1=3,'DDR3 Spec'!AB27,IF('DDR3 Config'!$G$1=4,'DDR3 Spec'!AM27,'DDR3 Spec'!AX27)))) -> na | G65: =IF('DDR3 Config'!$G$1=1,'DDR3 Spec'!G27,IF('DDR3 Config'!$G$1=2,'DDR3 Spec'!R27,IF('DDR3 Config'!$G$1=3,'DDR3 Spec'!AC27,IF('DDR3 Config'!$G$1=4,'DDR3 Spec'!AN27,'DDR3 Spec'!AY27)))) -> 165 | H65: =IF('DDR3 Config'!$G$1=1,'DDR3 Spec'!H27,IF('DDR3 Config'!$G$1=2,'DDR3 Spec'!S27,IF('DDR3 Config'!$G$1=3,'DDR3 Spec'!AD27,IF('DDR3 Config'!$G$1=4,'DDR3 Spec'!AO27,'DDR3 Spec'!AZ27)))) -> na | I65: =IF('DDR3 Config'!$G$1=1,'DDR3 Spec'!I27,IF('DDR3 Config'!$G$1=2,'DDR3 Spec'!T27,IF('DDR3 Config'!$G$1=3,'DDR3 Spec'!AE27,IF('DDR3 Config'!$G$1=4,'DDR3 Spec'!AP27,'DDR3 Spec'!BA27)))) -> 160 | J65: =IF('DDR3 Config'!$G$1=1,'DDR3 Spec'!J27,IF('DDR3 Config'!$G$1=2,'DDR3 Spec'!U27,IF('DDR3 Config'!$G$1=3,'DDR3 Spec'!AF27,IF('DDR3 Config'!$G$1=4,'DDR3 Spec'!AQ27,'DDR3 Spec'!BB27)))) -> 160 | K65: =IF('DDR3 Config'!$G$1=1,'DDR3 Spec'!K27,IF('DDR3 Config'!$G$1=2,'DDR3 Spec'!V27,IF('DDR3 Config'!$G$1=3,'DDR3 Spec'!AG27,IF('DDR3 Config'!$G$1=4,'DDR3 Spec'!AR27,'DDR3 Spec'!BC27)))) -> 155 | L65: =IF('DDR3 Config'!$G$1=1,'DDR3 Spec'!L27,IF('DDR3 Config'!$G$1=2,'DDR3 Spec'!W27,IF('DDR3 Config'!$G$1=3,'DDR3 Spec'!AH27,IF('DDR3 Config'!$G$1=4,'DDR3 Spec'!AS27,'DDR3 Spec'!BD27)))) -> na | M65: =IF('DDR3 Config'!$G$1=1,'DDR3 Spec'!M27,IF('DDR3 Config'!$G$1=2,'DDR3 Spec'!X27,IF('DDR3 Config'!$G$1=3,'DDR3 Spec'!AI27,IF('DDR3 Config'!$G$1=4,'DDR3 Spec'!AT27,'DDR3 Spec'!BE27)))) -> na | W65: =HLOOKUP($W$43,$D$43:$M$77,23) -> 170
D66: =IF('DDR3 Config'!$G$1=1,'DDR3 Spec'!D28,IF('DDR3 Config'!$G$1=2,'DDR3 Spec'!O28,IF('DDR3 Config'!$G$1=3,'DDR3 Spec'!Z28,IF('DDR3 Config'!$G$1=4,'DDR3 Spec'!AK28,'DDR3 Spec'!AV28)))) -> na | E66: =IF('DDR3 Config'!$G$1=1,'DDR3 Spec'!E28,IF('DDR3 Config'!$G$1=2,'DDR3 Spec'!P28,IF('DDR3 Config'!$G$1=3,'DDR3 Spec'!AA28,IF('DDR3 Config'!$G$1=4,'DDR3 Spec'!AL28,'DDR3 Spec'!AW28)))) -> 170 | F66: =IF('DDR3 Config'!$G$1=1,'DDR3 Spec'!F28,IF('DDR3 Config'!$G$1=2,'DDR3 Spec'!Q28,IF('DDR3 Config'!$G$1=3,'DDR3 Spec'!AB28,IF('DDR3 Config'!$G$1=4,'DDR3 Spec'!AM28,'DDR3 Spec'!AX28)))) -> na | G66: =IF('DDR3 Config'!$G$1=1,'DDR3 Spec'!G28,IF('DDR3 Config'!$G$1=2,'DDR3 Spec'!R28,IF('DDR3 Config'!$G$1=3,'DDR3 Spec'!AC28,IF('DDR3 Config'!$G$1=4,'DDR3 Spec'!AN28,'DDR3 Spec'!AY28)))) -> 165 | H66: =IF('DDR3 Config'!$G$1=1,'DDR3 Spec'!H28,IF('DDR3 Config'!$G$1=2,'DDR3 Spec'!S28,IF('DDR3 Config'!$G$1=3,'DDR3 Spec'!AD28,IF('DDR3 Config'!$G$1=4,'DDR3 Spec'!AO28,'DDR3 Spec'!AZ28)))) -> na | I66: =IF('DDR3 Config'!$G$1=1,'DDR3 Spec'!I28,IF('DDR3 Config'!$G$1=2,'DDR3 Spec'!T28,IF('DDR3 Config'!$G$1=3,'DDR3 Spec'!AE28,IF('DDR3 Config'!$G$1=4,'DDR3 Spec'!AP28,'DDR3 Spec'!BA28)))) -> 160 | J66: =IF('DDR3 Config'!$G$1=1,'DDR3 Spec'!J28,IF('DDR3 Config'!$G$1=2,'DDR3 Spec'!U28,IF('DDR3 Config'!$G$1=3,'DDR3 Spec'!AF28,IF('DDR3 Config'!$G$1=4,'DDR3 Spec'!AQ28,'DDR3 Spec'!BB28)))) -> 160 | K66: =IF('DDR3 Config'!$G$1=1,'DDR3 Spec'!K28,IF('DDR3 Config'!$G$1=2,'DDR3 Spec'!V28,IF('DDR3 Config'!$G$1=3,'DDR3 Spec'!AG28,IF('DDR3 Config'!$G$1=4,'DDR3 Spec'!AR28,'DDR3 Spec'!BC28)))) -> 155 | L66: =IF('DDR3 Config'!$G$1=1,'DDR3 Spec'!L28,IF('DDR3 Config'!$G$1=2,'DDR3 Spec'!W28,IF('DDR3 Config'!$G$1=3,'DDR3 Spec'!AH28,IF('DDR3 Config'!$G$1=4,'DDR3 Spec'!AS28,'DDR3 Spec'!BD28)))) -> na | M66: =IF('DDR3 Config'!$G$1=1,'DDR3 Spec'!M28,IF('DDR3 Config'!$G$1=2,'DDR3 Spec'!X28,IF('DDR3 Config'!$G$1=3,'DDR3 Spec'!AI28,IF('DDR3 Config'!$G$1=4,'DDR3 Spec'!AT28,'DDR3 Spec'!BE28)))) -> na | W66: =HLOOKUP($W$43,$D$43:$M$77,24) -> 170
D69: =IF('DDR3 Config'!$G$1=1,'DDR3 Spec'!D30,IF('DDR3 Config'!$G$1=2,'DDR3 Spec'!O30,IF('DDR3 Config'!$G$1=3,'DDR3 Spec'!Z30,IF('DDR3 Config'!$G$1=4,'DDR3 Spec'!AK30,'DDR3 Spec'!AV30)))) -> 0.938 | E69: =IF('DDR3 Config'!$G$1=1,'DDR3 Spec'!E30,IF('DDR3 Config'!$G$1=2,'DDR3 Spec'!P30,IF('DDR3 Config'!$G$1=3,'DDR3 Spec'!AA30,IF('DDR3 Config'!$G$1=4,'DDR3 Spec'!AL30,'DDR3 Spec'!AW30)))) -> 0.938 | F69: =IF('DDR3 Config'!$G$1=1,'DDR3 Spec'!F30,IF('DDR3 Config'!$G$1=2,'DDR3 Spec'!Q30,IF('DDR3 Config'!$G$1=3,'DDR3 Spec'!AB30,IF('DDR3 Config'!$G$1=4,'DDR3 Spec'!AM30,'DDR3 Spec'!AX30)))) -> 1.07 | G69: =IF('DDR3 Config'!$G$1=1,'DDR3 Spec'!G30,IF('DDR3 Config'!$G$1=2,'DDR3 Spec'!R30,IF('DDR3 Config'!$G$1=3,'DDR3 Spec'!AC30,IF('DDR3 Config'!$G$1=4,'DDR3 Spec'!AN30,'DDR3 Spec'!AY30)))) -> 1.07 | H69: =IF('DDR3 Config'!$G$1=1,'DDR3 Spec'!H30,IF('DDR3 Config'!$G$1=2,'DDR3 Spec'!S30,IF('DDR3 Config'!$G$1=3,'DDR3 Spec'!AD30,IF('DDR3 Config'!$G$1=4,'DDR3 Spec'!AO30,'DDR3 Spec'!AZ30)))) -> 1.25 | I69: =IF('DDR3 Config'!$G$1=1,'DDR3 Spec'!I30,IF('DDR3 Config'!$G$1=2,'DDR3 Spec'!T30,IF('DDR3 Config'!$G$1=3,'DDR3 Spec'!AE30,IF('DDR3 Config'!$G$1=4,'DDR3 Spec'!AP30,'DDR3 Spec'!BA30)))) -> 1.25 | J69: =IF('DDR3 Config'!$G$1=1,'DDR3 Spec'!J30,IF('DDR3 Config'!$G$1=2,'DDR3 Spec'!U30,IF('DDR3 Config'!$G$1=3,'DDR3 Spec'!AF30,IF('DDR3 Config'!$G$1=4,'DDR3 Spec'!AQ30,'DDR3 Spec'!BB30)))) -> 1.5 | K69: =IF('DDR3 Config'!$G$1=1,'DDR3 Spec'!K30,IF('DDR3 Config'!$G$1=2,'DDR3 Spec'!V30,IF('DDR3 Config'!$G$1=3,'DDR3 Spec'!AG30,IF('DDR3 Config'!$G$1=4,'DDR3 Spec'!AR30,'DDR3 Spec'!BC30)))) -> 1.875 | L69: =IF('DDR3 Config'!$G$1=1,'DDR3 Spec'!L30,IF('DDR3 Config'!$G$1=2,'DDR3 Spec'!W30,IF('DDR3 Config'!$G$1=3,'DDR3 Spec'!AH30,IF('DDR3 Config'!$G$1=4,'DDR3 Spec'!AS30,'DDR3 Spec'!BD30)))) -> 1.875 | M69: =IF('DDR3 Config'!$G$1=1,'DDR3 Spec'!M30,IF('DDR3 Config'!$G$1=2,'DDR3 Spec'!X30,IF('DDR3 Config'!$G$1=3,'DDR3 Spec'!AI30,IF('DDR3 Config'!$G$1=4,'DDR3 Spec'!AT30,'DDR3 Spec'!BE30)))) -> 2.5 | W69: =HLOOKUP($W$43,$D$43:$M$77,27) -> 0.938
C70: tRRD | D70: =IF('DDR3 Config'!$G$1=1,'DDR3 Spec'!D31,IF('DDR3 Config'!$G$1=2,'DDR3 Spec'!O31,IF('DDR3 Config'!$G$1=3,'DDR3 Spec'!Z31,IF('DDR3 Config'!$G$1=4,'DDR3 Spec'!AK31,'DDR3 Spec'!AV31)))) -> 6 | E70: =IF('DDR3 Config'!$G$1=1,'DDR3 Spec'!E31,IF('DDR3 Config'!$G$1=2,'DDR3 Spec'!P31,IF('DDR3 Config'!$G$1=3,'DDR3 Spec'!AA31,IF('DDR3 Config'!$G$1=4,'DDR3 Spec'!AL31,'DDR3 Spec'!AW31)))) -> 6 | F70: =IF('DDR3 Config'!$G$1=1,'DDR3 Spec'!F31,IF('DDR3 Config'!$G$1=2,'DDR3 Spec'!Q31,IF('DDR3 Config'!$G$1=3,'DDR3 Spec'!AB31,IF('DDR3 Config'!$G$1=4,'DDR3 Spec'!AM31,'DDR3 Spec'!AX31)))) -> 6 | G70: =IF('DDR3 Config'!$G$1=1,'DDR3 Spec'!G31,IF('DDR3 Config'!$G$1=2,'DDR3 Spec'!R31,IF('DDR3 Config'!$G$1=3,'DDR3 Spec'!AC31,IF('DDR3 Config'!$G$1=4,'DDR3 Spec'!AN31,'DDR3 Spec'!AY31)))) -> 6 | H70: =IF('DDR3 Config'!$G$1=1,'DDR3 Spec'!H31,IF('DDR3 Config'!$G$1=2,'DDR3 Spec'!S31,IF('DDR3 Config'!$G$1=3,'DDR3 Spec'!AD31,IF('DDR3 Config'!$G$1=4,'DDR3 Spec'!AO31,'DDR3 Spec'!AZ31)))) -> 6 | I70: =IF('DDR3 Config'!$G$1=1,'DDR3 Spec'!I31,IF('DDR3 Config'!$G$1=2,'DDR3 Spec'!T31,IF('DDR3 Config'!$G$1=3,'DDR3 Spec'!AE31,IF('DDR3 Config'!$G$1=4,'DDR3 Spec'!AP31,'DDR3 Spec'!BA31)))) -> 6 | J70: =IF('DDR3 Config'!$G$1=1,'DDR3 Spec'!J31,IF('DDR3 Config'!$G$1=2,'DDR3 Spec'!U31,IF('DDR3 Config'!$G$1=3,'DDR3 Spec'!AF31,IF('DDR3 Config'!$G$1=4,'DDR3 Spec'!AQ31,'DDR3 Spec'!BB31)))) -> 6 | K70: =IF('DDR3 Config'!$G$1=1,'DDR3 Spec'!K31,IF('DDR3 Config'!$G$1=2,'DDR3 Spec'!V31,IF('DDR3 Config'!$G$1=3,'DDR3 Spec'!AG31,IF('DDR3 Config'!$G$1=4,'DDR3 Spec'!AR31,'DDR3 Spec'!BC31)))) -> 7.5 | L70: =IF('DDR3 Config'!$G$1=1,'DDR3 Spec'!L31,IF('DDR3 Config'!$G$1=2,'DDR3 Spec'!W31,IF('DDR3 Config'!$G$1=3,'DDR3 Spec'!AH31,IF('DDR3 Config'!$G$1=4,'DDR3 Spec'!AS31,'DDR3 Spec'!BD31)))) -> 7.5 | M70: =IF('DDR3 Config'!$G$1=1,'DDR3 Spec'!M31,IF('DDR3 Config'!$G$1=2,'DDR3 Spec'!X31,IF('DDR3 Config'!$G$1=3,'DDR3 Spec'!AI31,IF('DDR3 Config'!$G$1=4,'DDR3 Spec'!AT31,'DDR3 Spec'!BE31)))) -> 10 | W70: =HLOOKUP($W$43,$D$43:$M$77,28) -> 6
D71: =IF('DDR3 Config'!$G$1=1,'DDR3 Spec'!D32,IF('DDR3 Config'!$G$1=2,'DDR3 Spec'!O32,IF('DDR3 Config'!$G$1=3,'DDR3 Spec'!Z32,IF('DDR3 Config'!$G$1=4,'DDR3 Spec'!AK32,'DDR3 Spec'!AV32)))) -> 7.5 | E71: =IF('DDR3 Config'!$G$1=1,'DDR3 Spec'!E32,IF('DDR3 Config'!$G$1=2,'DDR3 Spec'!P32,IF('DDR3 Config'!$G$1=3,'DDR3 Spec'!AA32,IF('DDR3 Config'!$G$1=4,'DDR3 Spec'!AL32,'DDR3 Spec'!AW32)))) -> 7.5 | F71: =IF('DDR3 Config'!$G$1=1,'DDR3 Spec'!F32,IF('DDR3 Config'!$G$1=2,'DDR3 Spec'!Q32,IF('DDR3 Config'!$G$1=3,'DDR3 Spec'!AB32,IF('DDR3 Config'!$G$1=4,'DDR3 Spec'!AM32,'DDR3 Spec'!AX32)))) -> 7.5 | G71: =IF('DDR3 Config'!$G$1=1,'DDR3 Spec'!G32,IF('DDR3 Config'!$G$1=2,'DDR3 Spec'!R32,IF('DDR3 Config'!$G$1=3,'DDR3 Spec'!AC32,IF('DDR3 Config'!$G$1=4,'DDR3 Spec'!AN32,'DDR3 Spec'!AY32)))) -> 7.5 | H71: =IF('DDR3 Config'!$G$1=1,'DDR3 Spec'!H32,IF('DDR3 Config'!$G$1=2,'DDR3 Spec'!S32,IF('DDR3 Config'!$G$1=3,'DDR3 Spec'!AD32,IF('DDR3 Config'!$G$1=4,'DDR3 Spec'!AO32,'DDR3 Spec'!AZ32)))) -> 7.5 | I71: =IF('DDR3 Config'!$G$1=1,'DDR3 Spec'!I32,IF('DDR3 Config'!$G$1=2,'DDR3 Spec'!T32,IF('DDR3 Config'!$G$1=3,'DDR3 Spec'!AE32,IF('DDR3 Config'!$G$1=4,'DDR3 Spec'!AP32,'DDR3 Spec'!BA32)))) -> 7.5 | J71: =IF('DDR3 Config'!$G$1=1,'DDR3 Spec'!J32,IF('DDR3 Config'!$G$1=2,'DDR3 Spec'!U32,IF('DDR3 Config'!$G$1=3,'DDR3 Spec'!AF32,IF('DDR3 Config'!$G$1=4,'DDR3 Spec'!AQ32,'DDR3 Spec'!BB32)))) -> 7.5 | K71: =IF('DDR3 Config'!$G$1=1,'DDR3 Spec'!K32,IF('DDR3 Config'!$G$1=2,'DDR3 Spec'!V32,IF('DDR3 Config'!$G$1=3,'DDR3 Spec'!AG32,IF('DDR3 Config'!$G$1=4,'DDR3 Spec'!AR32,'DDR3 Spec'!BC32)))) -> 10 | L71: =IF('DDR3 Config'!$G$1=1,'DDR3 Spec'!L32,IF('DDR3 Config'!$G$1=2,'DDR3 Spec'!W32,IF('DDR3 Config'!$G$1=3,'DDR3 Spec'!AH32,IF('DDR3 Config'!$G$1=4,'DDR3 Spec'!AS32,'DDR3 Spec'!BD32)))) -> 10 | M71: =IF('DDR3 Config'!$G$1=1,'DDR3 Spec'!M32,IF('DDR3 Config'!$G$1=2,'DDR3 Spec'!X32,IF('DDR3 Config'!$G$1=3,'DDR3 Spec'!AI32,IF('DDR3 Config'!$G$1=4,'DDR3 Spec'!AT32,'DDR3 Spec'!BE32)))) -> 10 | W71: =HLOOKUP($W$43,$D$43:$M$77,29) -> 7.5
C72: tRC | D72: =IF('DDR3 Config'!$G$1=1,'DDR3 Spec'!D33,IF('DDR3 Config'!$G$1=2,'DDR3 Spec'!O33,IF('DDR3 Config'!$G$1=3,'DDR3 Spec'!Z33,IF('DDR3 Config'!$G$1=4,'DDR3 Spec'!AK33,'DDR3 Spec'!AV33)))) -> 45.155 | E72: =IF('DDR3 Config'!$G$1=1,'DDR3 Spec'!E33,IF('DDR3 Config'!$G$1=2,'DDR3 Spec'!P33,IF('DDR3 Config'!$G$1=3,'DDR3 Spec'!AA33,IF('DDR3 Config'!$G$1=4,'DDR3 Spec'!AL33,'DDR3 Spec'!AW33)))) -> 46.09 | F72: =IF('DDR3 Config'!$G$1=1,'DDR3 Spec'!F33,IF('DDR3 Config'!$G$1=2,'DDR3 Spec'!Q33,IF('DDR3 Config'!$G$1=3,'DDR3 Spec'!AB33,IF('DDR3 Config'!$G$1=4,'DDR3 Spec'!AM33,'DDR3 Spec'!AX33)))) -> 46.84 | G72: =IF('DDR3 Config'!$G$1=1,'DDR3 Spec'!G33,IF('DDR3 Config'!$G$1=2,'DDR3 Spec'!R33,IF('DDR3 Config'!$G$1=3,'DDR3 Spec'!AC33,IF('DDR3 Config'!$G$1=4,'DDR3 Spec'!AN33,'DDR3 Spec'!AY33)))) -> 47.91 | H72: =IF('DDR3 Config'!$G$1=1,'DDR3 Spec'!H33,IF('DDR3 Config'!$G$1=2,'DDR3 Spec'!S33,IF('DDR3 Config'!$G$1=3,'DDR3 Spec'!AD33,IF('DDR3 Config'!$G$1=4,'DDR3 Spec'!AO33,'DDR3 Spec'!AZ33)))) -> 47.5 | I72: =IF('DDR3 Config'!$G$1=1,'DDR3 Spec'!I33,IF('DDR3 Config'!$G$1=2,'DDR3 Spec'!T33,IF('DDR3 Config'!$G$1=3,'DDR3 Spec'!AE33,IF('DDR3 Config'!$G$1=4,'DDR3 Spec'!AP33,'DDR3 Spec'!BA33)))) -> 48.75 | J72: =IF('DDR3 Config'!$G$1=1,'DDR3 Spec'!J33,IF('DDR3 Config'!$G$1=2,'DDR3 Spec'!U33,IF('DDR3 Config'!$G$1=3,'DDR3 Spec'!AF33,IF('DDR3 Config'!$G$1=4,'DDR3 Spec'!AQ33,'DDR3 Spec'!BB33)))) -> 49.5 | K72: =IF('DDR3 Config'!$G$1=1,'DDR3 Spec'!K33,IF('DDR3 Config'!$G$1=2,'DDR3 Spec'!V33,IF('DDR3 Config'!$G$1=3,'DDR3 Spec'!AG33,IF('DDR3 Config'!$G$1=4,'DDR3 Spec'!AR33,'DDR3 Spec'!BC33)))) -> 50.625 | L72: =IF('DDR3 Config'!$G$1=1,'DDR3 Spec'!L33,IF('DDR3 Config'!$G$1=2,'DDR3 Spec'!W33,IF('DDR3 Config'!$G$1=3,'DDR3 Spec'!AH33,IF('DDR3 Config'!$G$1=4,'DDR3 Spec'!AS33,'DDR3 Spec'!BD33)))) -> 52.5 | M72: =IF('DDR3 Config'!$G$1=1,'DDR3 Spec'!M33,IF('DDR3 Config'!$G$1=2,'DDR3 Spec'!X33,IF('DDR3 Config'!$G$1=3,'DDR3 Spec'!AI33,IF('DDR3 Config'!$G$1=4,'DDR3 Spec'!AT33,'DDR3 Spec'!BE33)))) -> 52.5 | W72: =HLOOKUP($W$43,$D$43:$M$77,30) -> 46.09
C73: tRAS | D73: =IF('DDR3 Config'!$G$1=1,'DDR3 Spec'!D34,IF('DDR3 Config'!$G$1=2,'DDR3 Spec'!O34,IF('DDR3 Config'!$G$1=3,'DDR3 Spec'!Z34,IF('DDR3 Config'!$G$1=4,'DDR3 Spec'!AK34,'DDR3 Spec'!AV34)))) -> 36 | E73: =IF('DDR3 Config'!$G$1=1,'DDR3 Spec'!E34,IF('DDR3 Config'!$G$1=2,'DDR3 Spec'!P34,IF('DDR3 Config'!$G$1=3,'DDR3 Spec'!AA34,IF('DDR3 Config'!$G$1=4,'DDR3 Spec'!AL34,'DDR3 Spec'!AW34)))) -> 36 | F73: =IF('DDR3 Config'!$G$1=1,'DDR3 Spec'!F34,IF('DDR3 Config'!$G$1=2,'DDR3 Spec'!Q34,IF('DDR3 Config'!$G$1=3,'DDR3 Spec'!AB34,IF('DDR3 Config'!$G$1=4,'DDR3 Spec'!AM34,'DDR3 Spec'!AX34)))) -> 34 | G73: =IF('DDR3 Config'!$G$1=1,'DDR3 Spec'!G34,IF('DDR3 Config'!$G$1=2,'DDR3 Spec'!R34,IF('DDR3 Config'!$G$1=3,'DDR3 Spec'!AC34,IF('DDR3 Config'!$G$1=4,'DDR3 Spec'!AN34,'DDR3 Spec'!AY34)))) -> 34 | H73: =IF('DDR3 Config'!$G$1=1,'DDR3 Spec'!H34,IF('DDR3 Config'!$G$1=2,'DDR3 Spec'!S34,IF('DDR3 Config'!$G$1=3,'DDR3 Spec'!AD34,IF('DDR3 Config'!$G$1=4,'DDR3 Spec'!AO34,'DDR3 Spec'!AZ34)))) -> 35 | I73: =IF('DDR3 Config'!$G$1=1,'DDR3 Spec'!I34,IF('DDR3 Config'!$G$1=2,'DDR3 Spec'!T34,IF('DDR3 Config'!$G$1=3,'DDR3 Spec'!AE34,IF('DDR3 Config'!$G$1=4,'DDR3 Spec'!AP34,'DDR3 Spec'!BA34)))) -> 35 | J73: =IF('DDR3 Config'!$G$1=1,'DDR3 Spec'!J34,IF('DDR3 Config'!$G$1=2,'DDR3 Spec'!U34,IF('DDR3 Config'!$G$1=3,'DDR3 Spec'!AF34,IF('DDR3 Config'!$G$1=4,'DDR3 Spec'!AQ34,'DDR3 Spec'!BB34)))) -> 36 | K73: =IF('DDR3 Config'!$G$1=1,'DDR3 Spec'!K34,IF('DDR3 Config'!$G$1=2,'DDR3 Spec'!V34,IF('DDR3 Config'!$G$1=3,'DDR3 Spec'!AG34,IF('DDR3 Config'!$G$1=4,'DDR3 Spec'!AR34,'DDR3 Spec'!BC34)))) -> 37.5 | L73: =IF('DDR3 Config'!$G$1=1,'DDR3 Spec'!L34,IF('DDR3 Config'!$G$1=2,'DDR3 Spec'!W34,IF('DDR3 Config'!$G$1=3,'DDR3 Spec'!AH34,IF('DDR3 Config'!$G$1=4,'DDR3 Spec'!AS34,'DDR3 Spec'!BD34)))) -> 37.5 | M73: =IF('DDR3 Config'!$G$1=1,'DDR3 Spec'!M34,IF('DDR3 Config'!$G$1=2,'DDR3 Spec'!X34,IF('DDR3 Config'!$G$1=3,'DDR3 Spec'!AI34,IF('DDR3 Config'!$G$1=4,'DDR3 Spec'!AT34,'DDR3 Spec'!BE34)))) -> 37.5 | W73: =HLOOKUP($W$43,$D$43:$M$77,31) -> 36
C74: tRFC (MIN) | D74: =IF('DDR3 Config'!$G$1=1,'DDR3 Spec'!D35,IF('DDR3 Config'!$G$1=2,'DDR3 Spec'!O35,IF('DDR3 Config'!$G$1=3,'DDR3 Spec'!Z35,IF('DDR3 Config'!$G$1=4,'DDR3 Spec'!AK35,'DDR3 Spec'!AV35)))) -> 110 | E74: =IF('DDR3 Config'!$G$1=1,'DDR3 Spec'!E35,IF('DDR3 Config'!$G$1=2,'DDR3 Spec'!P35,IF('DDR3 Config'!$G$1=3,'DDR3 Spec'!AA35,IF('DDR3 Config'!$G$1=4,'DDR3 Spec'!AL35,'DDR3 Spec'!AW35)))) -> 110 | F74: =IF('DDR3 Config'!$G$1=1,'DDR3 Spec'!F35,IF('DDR3 Config'!$G$1=2,'DDR3 Spec'!Q35,IF('DDR3 Config'!$G$1=3,'DDR3 Spec'!AB35,IF('DDR3 Config'!$G$1=4,'DDR3 Spec'!AM35,'DDR3 Spec'!AX35)))) -> 110 | G74: =IF('DDR3 Config'!$G$1=1,'DDR3 Spec'!G35,IF('DDR3 Config'!$G$1=2,'DDR3 Spec'!R35,IF('DDR3 Config'!$G$1=3,'DDR3 Spec'!AC35,IF('DDR3 Config'!$G$1=4,'DDR3 Spec'!AN35,'DDR3 Spec'!AY35)))) -> 110 | H74: =IF('DDR3 Config'!$G$1=1,'DDR3 Spec'!H35,IF('DDR3 Config'!$G$1=2,'DDR3 Spec'!S35,IF('DDR3 Config'!$G$1=3,'DDR3 Spec'!AD35,IF('DDR3 Config'!$G$1=4,'DDR3 Spec'!AO35,'DDR3 Spec'!AZ35)))) -> 110 | I74: =IF('DDR3 Config'!$G$1=1,'DDR3 Spec'!I35,IF('DDR3 Config'!$G$1=2,'DDR3 Spec'!T35,IF('DDR3 Config'!$G$1=3,'DDR3 Spec'!AE35,IF('DDR3 Config'!$G$1=4,'DDR3 Spec'!AP35,'DDR3 Spec'!BA35)))) -> 110 | J74: =IF('DDR3 Config'!$G$1=1,'DDR3 Spec'!J35,IF('DDR3 Config'!$G$1=2,'DDR3 Spec'!U35,IF('DDR3 Config'!$G$1=3,'DDR3 Spec'!AF35,IF('DDR3 Config'!$G$1=4,'DDR3 Spec'!AQ35,'DDR3 Spec'!BB35)))) -> 110 | K74: =IF('DDR3 Config'!$G$1=1,'DDR3 Spec'!K35,IF('DDR3 Config'!$G$1=2,'DDR3 Spec'!V35,IF('DDR3 Config'!$G$1=3,'DDR3 Spec'!AG35,IF('DDR3 Config'!$G$1=4,'DDR3 Spec'!AR35,'DDR3 Spec'!BC35)))) -> 110 | L74: =IF('DDR3 Config'!$G$1=1,'DDR3 Spec'!L35,IF('DDR3 Config'!$G$1=2,'DDR3 Spec'!W35,IF('DDR3 Config'!$G$1=3,'DDR3 Spec'!AH35,IF('DDR3 Config'!$G$1=4,'DDR3 Spec'!AS35,'DDR3 Spec'!BD35)))) -> 110 | M74: =IF('DDR3 Config'!$G$1=1,'DDR3 Spec'!M35,IF('DDR3 Config'!$G$1=2,'DDR3 Spec'!X35,IF('DDR3 Config'!$G$1=3,'DDR3 Spec'!AI35,IF('DDR3 Config'!$G$1=4,'DDR3 Spec'!AT35,'DDR3 Spec'!BE35)))) -> 110 | W74: =HLOOKUP($W$43,$D$43:$M$77,32) -> 110
C75: tREFI | D75: =IF('DDR3 Config'!$G$1=1,'DDR3 Spec'!D36,IF('DDR3 Config'!$G$1=2,'DDR3 Spec'!O36,IF('DDR3 Config'!$G$1=3,'DDR3 Spec'!Z36,IF('DDR3 Config'!$G$1=4,'DDR3 Spec'!AK36,'DDR3 Spec'!AV36)))) -> 7.8 | E75: =IF('DDR3 Config'!$G$1=1,'DDR3 Spec'!E36,IF('DDR3 Config'!$G$1=2,'DDR3 Spec'!P36,IF('DDR3 Config'!$G$1=3,'DDR3 Spec'!AA36,IF('DDR3 Config'!$G$1=4,'DDR3 Spec'!AL36,'DDR3 Spec'!AW36)))) -> 7.8 | F75: =IF('DDR3 Config'!$G$1=1,'DDR3 Spec'!F36,IF('DDR3 Config'!$G$1=2,'DDR3 Spec'!Q36,IF('DDR3 Config'!$G$1=3,'DDR3 Spec'!AB36,IF('DDR3 Config'!$G$1=4,'DDR3 Spec'!AM36,'DDR3 Spec'!AX36)))) -> 7.8 | G75: =IF('DDR3 Config'!$G$1=1,'DDR3 Spec'!G36,IF('DDR3 Config'!$G$1=2,'DDR3 Spec'!R36,IF('DDR3 Config'!$G$1=3,'DDR3 Spec'!AC36,IF('DDR3 Config'!$G$1=4,'DDR3 Spec'!AN36,'DDR3 Spec'!AY36)))) -> 7.8 | H75: =IF('DDR3 Config'!$G$1=1,'DDR3 Spec'!H36,IF('DDR3 Config'!$G$1=2,'DDR3 Spec'!S36,IF('DDR3 Config'!$G$1=3,'DDR3 Spec'!AD36,IF('DDR3 Config'!$G$1=4,'DDR3 Spec'!AO36,'DDR3 Spec'!AZ36)))) -> 7.8 | I75: =IF('DDR3 Config'!$G$1=1,'DDR3 Spec'!I36,IF('DDR3 Config'!$G$1=2,'DDR3 Spec'!T36,IF('DDR3 Config'!$G$1=3,'DDR3 Spec'!AE36,IF('DDR3 Config'!$G$1=4,'DDR3 Spec'!AP36,'DDR3 Spec'!BA36)))) -> 7.8 | J75: =IF('DDR3 Config'!$G$1=1,'DDR3 Spec'!J36,IF('DDR3 Config'!$G$1=2,'DDR3 Spec'!U36,IF('DDR3 Config'!$G$1=3,'DDR3 Spec'!AF36,IF('DDR3 Config'!$G$1=4,'DDR3 Spec'!AQ36,'DDR3 Spec'!BB36)))) -> 7.8 | K75: =IF('DDR3 Config'!$G$1=1,'DDR3 Spec'!K36,IF('DDR3 Config'!$G$1=2,'DDR3 Spec'!V36,IF('DDR3 Config'!$G$1=3,'DDR3 Spec'!AG36,IF('DDR3 Config'!$G$1=4,'DDR3 Spec'!AR36,'DDR3 Spec'!BC36)))) -> 7.8 | L75: =IF('DDR3 Config'!$G$1=1,'DDR3 Spec'!L36,IF('DDR3 Config'!$G$1=2,'DDR3 Spec'!W36,IF('DDR3 Config'!$G$1=3,'DDR3 Spec'!AH36,IF('DDR3 Config'!$G$1=4,'DDR3 Spec'!AS36,'DDR3 Spec'!BD36)))) -> 7.8 | M75: =IF('DDR3 Config'!$G$1=1,'DDR3 Spec'!M36,IF('DDR3 Config'!$G$1=2,'DDR3 Spec'!X36,IF('DDR3 Config'!$G$1=3,'DDR3 Spec'!AI36,IF('DDR3 Config'!$G$1=4,'DDR3 Spec'!AT36,'DDR3 Spec'!BE36)))) -> 7.8 | W75: =HLOOKUP($W$43,$D$43:$M$77,33) -> 7.8
C76: tCK (MIN) | D76: =IF('DDR3 Config'!$G$1=1,'DDR3 Spec'!D37,IF('DDR3 Config'!$G$1=2,'DDR3 Spec'!O37,IF('DDR3 Config'!$G$1=3,'DDR3 Spec'!Z37,IF('DDR3 Config'!$G$1=4,'DDR3 Spec'!AK37,'DDR3 Spec'!AV37)))) -> 0.938 | E76: =IF('DDR3 Config'!$G$1=1,'DDR3 Spec'!E37,IF('DDR3 Config'!$G$1=2,'DDR3 Spec'!P37,IF('DDR3 Config'!$G$1=3,'DDR3 Spec'!AA37,IF('DDR3 Config'!$G$1=4,'DDR3 Spec'!AL37,'DDR3 Spec'!AW37)))) -> 0.938 | F76: =IF('DDR3 Config'!$G$1=1,'DDR3 Spec'!F37,IF('DDR3 Config'!$G$1=2,'DDR3 Spec'!Q37,IF('DDR3 Config'!$G$1=3,'DDR3 Spec'!AB37,IF('DDR3 Config'!$G$1=4,'DDR3 Spec'!AM37,'DDR3 Spec'!AX37)))) -> 1.07 | G76: =IF('DDR3 Config'!$G$1=1,'DDR3 Spec'!G37,IF('DDR3 Config'!$G$1=2,'DDR3 Spec'!R37,IF('DDR3 Config'!$G$1=3,'DDR3 Spec'!AC37,IF('DDR3 Config'!$G$1=4,'DDR3 Spec'!AN37,'DDR3 Spec'!AY37)))) -> 1.07 | H76: =IF('DDR3 Config'!$G$1=1,'DDR3 Spec'!H37,IF('DDR3 Config'!$G$1=2,'DDR3 Spec'!S37,IF('DDR3 Config'!$G$1=3,'DDR3 Spec'!AD37,IF('DDR3 Config'!$G$1=4,'DDR3 Spec'!AO37,'DDR3 Spec'!AZ37)))) -> 1.25 | I76: =IF('DDR3 Config'!$G$1=1,'DDR3 Spec'!I37,IF('DDR3 Config'!$G$1=2,'DDR3 Spec'!T37,IF('DDR3 Config'!$G$1=3,'DDR3 Spec'!AE37,IF('DDR3 Config'!$G$1=4,'DDR3 Spec'!AP37,'DDR3 Spec'!BA37)))) -> 1.25 | J76: =IF('DDR3 Config'!$G$1=1,'DDR3 Spec'!J37,IF('DDR3 Config'!$G$1=2,'DDR3 Spec'!U37,IF('DDR3 Config'!$G$1=3,'DDR3 Spec'!AF37,IF('DDR3 Config'!$G$1=4,'DDR3 Spec'!AQ37,'DDR3 Spec'!BB37)))) -> 1.5 | K76: =IF('DDR3 Config'!$G$1=1,'DDR3 Spec'!K37,IF('DDR3 Config'!$G$1=2,'DDR3 Spec'!V37,IF('DDR3 Config'!$G$1=3,'DDR3 Spec'!AG37,IF('DDR3 Config'!$G$1=4,'DDR3 Spec'!AR37,'DDR3 Spec'!BC37)))) -> 1.875 | L76: =IF('DDR3 Config'!$G$1=1,'DDR3 Spec'!L37,IF('DDR3 Config'!$G$1=2,'DDR3 Spec'!W37,IF('DDR3 Config'!$G$1=3,'DDR3 Spec'!AH37,IF('DDR3 Config'!$G$1=4,'DDR3 Spec'!AS37,'DDR3 Spec'!BD37)))) -> 1.875 | M76: =IF('DDR3 Config'!$G$1=1,'DDR3 Spec'!M37,IF('DDR3 Config'!$G$1=2,'DDR3 Spec'!X37,IF('DDR3 Config'!$G$1=3,'DDR3 Spec'!AI37,IF('DDR3 Config'!$G$1=4,'DDR3 Spec'!AT37,'DDR3 Spec'!BE37)))) -> 2.5 | W76: =HLOOKUP($W$43,$D$43:$M$77,34) -> 0.938
C77: tCK (MAX) | D77: =IF('DDR3 Config'!$G$1=1,'DDR3 Spec'!D38,IF('DDR3 Config'!$G$1=2,'DDR3 Spec'!O38,IF('DDR3 Config'!$G$1=3,'DDR3 Spec'!Z38,IF('DDR3 Config'!$G$1=4,'DDR3 Spec'!AK38,'DDR3 Spec'!AV38)))) -> 3.3 | E77: =IF('DDR3 Config'!$G$1=1,'DDR3 Spec'!E38,IF('DDR3 Config'!$G$1=2,'DDR3 Spec'!P38,IF('DDR3 Config'!$G$1=3,'DDR3 Spec'!AA38,IF('DDR3 Config'!$G$1=4,'DDR3 Spec'!AL38,'DDR3 Spec'!AW38)))) -> 3.3 | F77: =IF('DDR3 Config'!$G$1=1,'DDR3 Spec'!F38,IF('DDR3 Config'!$G$1=2,'DDR3 Spec'!Q38,IF('DDR3 Config'!$G$1=3,'DDR3 Spec'!AB38,IF('DDR3 Config'!$G$1=4,'DDR3 Spec'!AM38,'DDR3 Spec'!AX38)))) -> 3.3 | G77: =IF('DDR3 Config'!$G$1=1,'DDR3 Spec'!G38,IF('DDR3 Config'!$G$1=2,'DDR3 Spec'!R38,IF('DDR3 Config'!$G$1=3,'DDR3 Spec'!AC38,IF('DDR3 Config'!$G$1=4,'DDR3 Spec'!AN38,'DDR3 Spec'!AY38)))) -> 3.3 | H77: =IF('DDR3 Config'!$G$1=1,'DDR3 Spec'!H38,IF('DDR3 Config'!$G$1=2,'DDR3 Spec'!S38,IF('DDR3 Config'!$G$1=3,'DDR3 Spec'!AD38,IF('DDR3 Config'!$G$1=4,'DDR3 Spec'!AO38,'DDR3 Spec'!AZ38)))) -> 3.3 | I77: =IF('DDR3 Config'!$G$1=1,'DDR3 Spec'!I38,IF('DDR3 Config'!$G$1=2,'DDR3 Spec'!T38,IF('DDR3 Config'!$G$1=3,'DDR3 Spec'!AE38,IF('DDR3 Config'!$G$1=4,'DDR3 Spec'!AP38,'DDR3 Spec'!BA38)))) -> 3.3 | J77: =IF('DDR3 Config'!$G$1=1,'DDR3 Spec'!J38,IF('DDR3 Config'!$G$1=2,'DDR3 Spec'!U38,IF('DDR3 Config'!$G$1=3,'DDR3 Spec'!AF38,IF('DDR3 Config'!$G$1=4,'DDR3 Spec'!AQ38,'DDR3 Spec'!BB38)))) -> 3.3 | K77: =IF('DDR3 Config'!$G$1=1,'DDR3 Spec'!K38,IF('DDR3 Config'!$G$1=2,'DDR3 Spec'!V38,IF('DDR3 Config'!$G$1=3,'DDR3 Spec'!AG38,IF('DDR3 Config'!$G$1=4,'DDR3 Spec'!AR38,'DDR3 Spec'!BC38)))) -> 3.3 | L77: =IF('DDR3 Config'!$G$1=1,'DDR3 Spec'!L38,IF('DDR3 Config'!$G$1=2,'DDR3 Spec'!W38,IF('DDR3 Config'!$G$1=3,'DDR3 Spec'!AH38,IF('DDR3 Config'!$G$1=4,'DDR3 Spec'!AS38,'DDR3 Spec'!BD38)))) -> 3.3 | M77: =IF('DDR3 Config'!$G$1=1,'DDR3 Spec'!M38,IF('DDR3 Config'!$G$1=2,'DDR3 Spec'!X38,IF('DDR3 Config'!$G$1=3,'DDR3 Spec'!AI38,IF('DDR3 Config'!$G$1=4,'DDR3 Spec'!AT38,'DDR3 Spec'!BE38)))) -> 3.3 | W77: =HLOOKUP($W$43,$D$43:$M$77,35) -> 3.3
A79: Parameter | B79: Condition
B80: Maximum VCC | L80: =IF('DDR3 Config'!K12=1,'DDR3 Config'!L8,'DDR3 Config'!L9) -> 1.575
B81: Minimum VCC | L81: =IF('DDR3 Config'!K12=1,'DDR3 Config'!M8,'DDR3 Config'!M9) -> 1.425
A83: IDD0 | B83: Maximum Active Precharge Current | L83: =IF('DDR3 Config'!K1=3,'DDR3 Spec'!W48,'DDR3 Spec'!W47) -> 55
A84: IDD2P | B84: Maximum Precharge Power-Down Standby Current | L84: =IF('DDR3 Config'!I1=2,L87,L86) -> 15
A85: IDD2N | B85: Maximum Precharge Standby Current | L85: =IF('DDR3 Config'!K1=3,'DDR3 Spec'!W54,'DDR3 Spec'!W53) -> 23
L86: =IF('DDR3 Config'!K1=3,'DDR3 Spec'!W50,'DDR3 Spec'!W49) -> 12
L87: =IF('DDR3 Config'!K1=3,'DDR3 Spec'!W52,'DDR3 Spec'!W51) -> 15
A88: IDD3P | B88: Maximum Active Power-Down Standby Current | L88: =IF('DDR3 Config'!K1=3,'DDR3 Spec'!W56,'DDR3 Spec'!W55) -> 17
A89: IDD3N | B89: Maximum Active Standby Current | L89: =IF('DDR3 Config'!K1=3,'DDR3 Spec'!W58,'DDR3 Spec'!W57) -> 43
A90: IDD4R | B90: Maximum Read Burst Current | L90: =IF('DDR3 Config'!K1=3,'DDR3 Spec'!W61, IF('DDR3 Config'!K1=2, 'DDR3 Spec'!W60, 'DDR3 Spec'!W59 ) ) -> 180
A91: IDD4W | B91: Maximum Write BurstCurrent | L91: =IF('DDR3 Config'!K1=3,'DDR3 Spec'!W64, IF('DDR3 Config'!K1=2, 'DDR3 Spec'!W63, 'DDR3 Spec'!W62 ) ) -> 184
A92: IDD5A | B92: Maximum Burst Refresh Current | L92: =IF('DDR3 Config'!K1=3,'DDR3 Spec'!W66,'DDR3 Spec'!W65) -> 170
B94: tCK used for current measurements (see current notes) | L94: =W69 -> 0.938
A95: tRRD | B95: Minimum activate-to-activate timing (different bank) | L95: =IF('DDR3 Config'!K1=3,'DDR3 Spec'!W71,'DDR3 Spec'!W70) -> 7.5
A96: tRC | B96: Minimum activate-to-activate timing (Same bank) | L96: =W72 -> 46.09
A97: tRAS | B97: tRAS used for IDD0 Calcualtion | L97: 36
A98: tRFC(min) | B98: Minimum refresh to refresh cycle time | L98: 110
A99: tREFI | B99: Average periodic refresh cycle time | L99: 7.8
A100: tCK(min) | B100: Minimum tCK cycle rate | L100: 0.938
A101: tCK(max) | B101: Maximum tCK cycle rate | L101: 3.3
A105: Initial numbers are for reference only and must be verified with existing DRAM data sheets for accuracy prior to using the spreadsheet.

Sheet DDR3 Config
G1: 1 | H1: 2 | I1: 2 | K1: 3
H2: Speed Grade | I2: PD Exit Mode | K2: DQs per DRAM
G3: 1Gb | H3: ='DDR3 Spec'!D5 -> -093E | I3: 0:Slow | J3: 1 | K3: x4 | L3: 4
G4: 2Gb | H4: ='DDR3 Spec'!E5 -> -093 | I4: 1:Fast | J4: 1 | K4: x8 | L4: 8
A5: =_xlfn.CONCAT(IF(K12=1,"DDR3","DDR3L")," SDRAM Configuration") -> DDR3 SDRAM Configuration | G5: 4Gb | H5: ='DDR3 Spec'!F5 -> -107E | J5: 2 | K5: x16 | L5: 16
G6: 8Gb | H6: ='DDR3 Spec'!G5 -> -107
B7: DRAM Density | C7: =INDEX(G3:G7,G1) -> 1Gb | G7: 16Gb | H7: ='DDR3 Spec'!H5 -> -125E | L7: Max VCC | M7: Min VCC
B8: Number of DQs per DRAM | C8: =INDEX(L3:L5,K1) -> 16 | H8: ='DDR3 Spec'!I5 -> -125 | K8: DDR3 | L8: 1.575 | M8: 1.425
B9: Speed Grade | C9: =INDEX(H3:H12,H1) -> -093 | H9: ='DDR3 Spec'!J5 -> -15E | K9: DDR3L | L9: 1.435 | M9: 1.283
B10: DDR3 or DDR3L | H10: ='DDR3 Spec'!K5 -> -187E
B11: Mode Register bit 12: Precharge PD Exit Mode | H11: ='DDR3 Spec'!L5 -> -187
H12: ='DDR3 Spec'!M5 -> -25 | K12: 1
A14: Parameter | B14: Condition | C14: Value | D14: Units
B15: Maximum VCC | C15: =IF(K12=1,L8,L9) -> 1.575 | D15: V
B16: Minimum VCC | C16: =IF(K12=1,M8,M9) -> 1.425 | D16: V
B18: Number of DQ strobes (DQS) per DRAM | C18: =INDEX(J3:J5,K1)*2 -> 4
B19: Number of data mask (DM) per DRAM | C19: =INDEX(J3:J5,K1) -> 2
A21: IDD0 | B21: Maximum active precharge current | C21: ='DDR3 Spec'!L83 -> 55 | D21: mA
A22: IDD2P | B22: Maximum precharge power-down standby current | C22: ='DDR3 Spec'!L84 -> 15 | D22: mA
A23: IDD2N | B23: Maximum precharge standby current | C23: ='DDR3 Spec'!L85 -> 23 | D23: mA
A24: IDD3P | B24: Maximum active power-down standby current | C24: ='DDR3 Spec'!L88 -> 17 | D24: mA
A25: IDD3N | B25: Maximum active standby current | C25: ='DDR3 Spec'!L89 -> 43 | D25: mA
A26: IDD4R | B26: Maximum read burst current | C26: ='DDR3 Spec'!L90 -> 180 | D26: mA
A27: IDD4W | B27: Maximum write burst current | C27: ='DDR3 Spec'!L91 -> 184 | D27: mA
A28: IDD5A | B28: Maximum burst refresh current | C28: ='DDR3 Spec'!L92 -> 170 | D28: mA
B30: tCK used for current measurements (see current notes) | C30: ='DDR3 Spec'!L94 -> 0.938 | D30: ns
A31: tRRD | B31: Minimum activate-to-activate timing (different bank) | C31: ='DDR3 Spec'!L95 -> 7.5 | D31: ns
A32: tRC | B32: Minimum activate-to-activate timing (same bank) | C32: ='DDR3 Spec'!L96 -> 46.09 | D32: ns
A33: tRAS | B33: tRAS used for IDD0 calculation | C33: ='DDR3 Spec'!L97 -> 36 | D33: ns
A34: tRFC (MIN) | B34: Minimum refresh-to-refresh cycle time | C34: ='DDR3 Spec'!L98 -> 110 | D34: ns
A35: tREFI | B35: Average periodic refresh cycle time | C35: ='DDR3 Spec'!L99 -> 7.8 | D35: µs
A36: tCK (MIN) | B36: Minimum tCK cycle rate | C36: ='DDR3 Spec'!L100 -> 0.938 | D36: ns
A37: tCK (MAX) | B37: Maximum tCK cycle rate | C37: ='DDR3 Spec'!L101 -> 3.3 | D37: ns

Sheet System Config
G4: READ I/O Power | O4: WRITE I/O Power
B5: DRAM Usage Conditions in the System Environment
B7: System VDD | C7: 1.5 | D7: V | E7: =IF(C7<'DDR3 Config'!C16,"ERROR, VCC too Low",IF(C7>'DDR3 Config'!C15,"ERROR, too High","")) -> 
B8: System CK frequency | C8: 800 | D8: MHz | E8: =IF(C8+1<1000/'DDR3 Config'!C37,"ERROR, lower of operaitonal frequency range",IF(C8 > 1000 /'DDR3 Config'!C36,"ERROR, higher of operaitonal frequency range","")) -> 
B9: Burst length | C9: 8 | E9: must be either 4 or 8
A11: PdqRD | B11: DDR3 SDRAM output power per individual DQ on this DRAM during READs from this DRAM | C11: =IF(K18= "na",0, K18) +IF(K19= "na",0, K19) -> 5.451488631 | D11: mW | E11: This value is the DRAM I/O power plus module series resistor power per DQ. The calculator to the right will estimate and populate the entries to the left
A12: PdqWR | B12: DDR3 SDRAM termination power per individual DQ during WRITEs to this DRAM | C12: =IF(S18= "na",0, S18) +IF(S19= "na",0, S19) -> 20.62375593 | D12: mW | H12: Enter values in dark green boxes below | P12: Enter values in dark green boxes below
A13: PdqRDoth | B13: DDR3 SDRAM termination power per individual DQ during READs from other DRAM | C13: =IF(M18= "na",0, M18) +IF(M19= "na",0, M19) -> 29.67859467 | D13: mW | E13: This value is the termination power plus module series resistor power per DQ. The calculator to the right will estimate and populate the entries to the left | H13: RTTuC= | I13: 120 | J13: Rz1= | K13: 34 | L13: RTTu2= | M13: 40 | P13: RzC= | Q13: 34 | R13: RTTu1= | S13: 60 | T13: RTTu2= | U13: =M13 -> 40 | X13: IRZC | Y13: =1*Q17/Q13 -> 14.635181 | AA13: IRTTpu1 | AB13: =1000*((Q15-0.001*S17)/S13) -> 16.21182127 | AD13: IRTTpu1 | AE13: =1000*((Q15-0.001*U17)/U13) -> 22.35576923
A14: PdqWRoth | B14: DDR3 SDRAM termination power per individual DQ during WRITEs to other DRAM | C14: =IF(U18= "na",0, U18) +IF(U19= "na",0, U19) -> 29.94522004 | D14: mW | H14: RTTdC= | I14: 120 | J14: Rs1= | K14: 15 | L14: RTTd2= | M14: 40 | R14: RTTd1= | S14: 60 | T14: RTTd2= | U14: =M14 -> 40 | AA14: IRTTpd1 | AB14: =1*S17/S14 -> 8.788178733 | AD14: IRTTpd1 | AE14: =1*U17/U14 -> 15.14423077
H15: VDDq= | I15: =$C$7 -> 1.5 | L15: Rs2= | M15: 15 | P15: VDDq= | Q15: =$C$7 -> 1.5 | R15: Rs1= | S15: 4 | T15: Rs2= | U15: =M15 -> 15 | AA15: IRS1 | AB15: =1*(S17-Q17)/S15 -> 7.423642534 | AD15: IRS1 | AE15: =1*(U17-Q17)/U15 -> 7.211538462
A16: BNK_PRE% | B16: The percentage of time that all banks on the DRAM are in a precharged state | C16: 0.25 | H16: Calculated values in light green boxes below | P16: Calculated values in light green boxes below
A17: CKE_LO_PRE% | B17: The percentage of the all bank precharge time for which CKE is held LOW | C17: 0.25 | H17: N3= (mV) | I17: =IF(I15>0,1000*((I15/2)*(K13+K14)/((K13+K14)+IF(M13>0,IF(M14>0,(((I13*I14)/(I13+I14))*((M13*M14)/(M13+M14)+M15)/((I13*I14)/(I13+I14)+((M13*M14)/(M13+M14)+M15))),(I13*I14)/(I13+I14)),(I13*I14)/(I13+I14)))),"na") -> 516.8393782 | J17: N1= (mV) | K17: =IF(K13>0, 1000* ( I17*0.001 *K13/(K13+K14)),"na") -> 358.623242 | L17: N2= (mV) | M17: =IF(M13>0, IF(M14>0, 1000* ( I17*0.001+ 1*M15* ( I17*0.001/(K13+K14) - 0.004)), "na"), "na") -> 615.0555144 | P17: N3= (mV) | Q17: =IF(Q15>0, 1000*( (Q15/2 ) * Q13 / ( IF(U13>0, IF(U14>0, ( ( ((S13*S14)/(S13+S14)+S15 ) * ((U13*U14)/(U13+U14)+U15)) / ( ((S13*S14)/(S13+S14)+S15) + ((U13*U14)/(U13+U14)+U15))), ((S13*S14)/(S13+S14)+S15 ) ), ((S13*S14)/(S13+S14)+S15 ) ) +Q13) ),"na") -> 497.5961538 | R17: N1= (mV) | S17: =IF(S13>0,IF(S14>0, Q17+ (1000*Q15/2-Q17) * S15 / ((S13*S14)/(S13+S14) + S15 ),"na"),"na") -> 527.290724 | T17: N2= (mV) | U17: =IF(U13>0,IF(U14>0, Q17+ (1000*Q15/2-Q17) * U15 / ((U13*U14)/(U13+U14) + U15 ),"na"),"na") -> 605.7692308
A18: CKE_LO_ACT% | B18: The percentage of the at least one bank active time for which CKE is held LOW | C18: 0.25 | E18: =IF(1-C18<C22+C23,"ERROR, CKE HI must be greater than READ and WRITE output cycles","") ->  | H18: RTTC = (mW) | I18: =IF(I13>0,IF(I14>0, 1000* (((I15-I17*0.001)/I13)*((I15-I17*0.001)/I13)*I13) + 1000* (((I17*0.001)/I14)*((I17*0.001)/I14)*I14),"na"),"na") -> 10.28106459 | J18: Rz = (mW) | K18: =IF(K13>0, 1000* (I17*0.001/(K13+K14)) * (I17*0.001/(K13+K14)) *K13, "na") -> 3.78266558 | L18: RTTd2 = (mW) | M18: =IF(M13>0,IF(M14>0,(1000*(((I15-0.001*M17)/M13)*((I15-0.001*M17)/M13)*M13 + (0.001*M17/M14)*(0.001*M17/M14)*M14) ),"na"),"na") -> 29.03550071 | P18: Rz = (mW) | Q18: =IF(Q13>0, 0.001* (Q17/(Q13)) * (Q17/(Q13)) *Q13, "na") -> 7.282409774 | R18: RTTd1 = (mW) | S18: =IF(S13>0,IF(S14>0, 1000*( (1* ((Q15-0.001*S17)/S13) * ((Q15-0.001*S17)/S13) *S13 + (0.001*S17/S14) * (0.001*S17/S14) *S13 )),"na"),"na") -> 20.40331405 | T18: RTTd2 = (mW) | U18: =IF(U13>0,IF(U14>0, 1000*(1* ((Q15-0.001*U17)/U13) * ((Q15-0.001*U17)/U13) *U13 + (0.001*U17/U14) * (0.001*U17/U14) *U13 ),"na"),"na") -> 29.16512574
J19: Rs1 = (mW) | K19: =IF(K13>0,IF(K14>0,1000*(I17*0.001/(K13+K14))*(I17*0.001/(K13+K14))*K14,"na"),"na") -> 1.66882305 | L19: Rs2= (mW) | M19: =IF(M13>0,IF(M14>0, IF(M15>0, 1000*( ( (0.001*M17-0.001*I17)/M15) * ( (0.001*M17-0.001*I17)/M15)* M15),"na"),"na"),"na") -> 0.6430939606 | R19: Rs1= (mW) | S19: =IF(S13>0,IF(S14>0, IF(S15>0,0.001*(( ((S17-Q17)/S15) * ((S17-Q17)/S15) * S15 ) ),0),"na"),"na") -> 0.2204418739 | T19: Rs2= (mW) | U19: =IF(U13>0,IF(U14>0, IF(U15>0, 0.001*( ((U17-Q17)/U15) * ((U17-Q17)/U15) * U15 ),0),"na"),"na") -> 0.7800943047
A20: PH% | B20: Page hit rate | C20: 0.5 | X20: 1.5
X21: 1.35
A22: RDsch% | B22: The percentage of clock cycles which are outputting read data from the DRAM | C22: 0.3 | E22: =IF(SUM(C22+C23+C25+C26)*8/C9>1,"Data Bus utilization is too high","") -> 
A23: WRsch% | B23: The percentage of clock cycles which are inputting write data to the DRAM | C23: 0.3
C24: =C22/(C23+C22) -> 0.5 | E24: ratio of reads to writes
A25: termRDsch% | B25: The percentage of clock cycles which are terminating read data to another DRAM | C25: 0 | E25: must be 0% for a 1-rank system
A26: termWRsch% | B26: The percentage of clock cycles which are terminating write data to another DRAM | C26: 0 | E26: must be 0% for a 1-rank system
A28: tRRDsch | B28: The average time between ACT commands to this DRAM (includes ACT to same or different banks in the same DRAM device) | C28: =INT(C40*10000/C8)/10 -> 16.6 | D28: ns
E29: The above is calculated from page hit rate read/write bus utilization. No entry is necessary.
B35: Values that may be updated are shown in green. This will be dependent on how the system accesses the DRAM.
B36: Calculated values in light green.
B39: Average clocks between column | C39: =C9/2/(C23+C22) -> 6.666666667
B40: Average Clocks between Rows | C40: =C39/(1-C20) -> 13.33333333

Sheet Power Calcs
A5: =CONCATENATE("System Derating for ",C33," ",IF('DDR3 Config'!K12=1,"DDR3","DDR3L")," SDRAM (x",C34,", ",C35," Speed Grade)") -> System Derating for 1Gb DDR3 SDRAM (x16, -093 Speed Grade)
A7: Power is calculated based upon data sheet test conditions and maximum limits, scaled for used conditions an actual VDD. and finally scaled for the frequency being used. All parameters are calculated and require no user input.
B10: Power Based on Data Sheet Test Conditions and Maximum Limits | F10: Power Derated for System Usage Conditions Input into This Model | J10: Power Scaled for Actual System Conditions (DRAM Usage, CK Frequency, and VCC)
A11: Background power used during precharge power-down | B11: Pds(PRE_PDN) | C11: =+'DDR3 Config'!C22*'DDR3 Config'!C$15 -> 23.625 | D11: mW | F11: Psch(PRE_PDN) | G11: =C11*'System Config'!C16*'System Config'!C17 -> 1.4765625 | H11: mW | J11: Psys(PRE_PDN) | K11: =+G11*('System Config'!C$7/'DDR3 Config'!C$15)^2*IF('DDR3 Config'!I1=2,'System Config'!C$8/1000*'DDR3 Config'!C$30,1) -> 1.005 | L11: mW
A12: Background power used during idle standby | B12: Pds(PRE_STBY) | C12: =+'DDR3 Config'!C23*'DDR3 Config'!C$15 -> 36.225 | D12: mW | F12: Psch(PRE_STBY) | G12: =C12*'System Config'!C16*(1-'System Config'!C17) -> 6.7921875 | H12: mW | J12: Psys(PRE_STBY) | K12: =+G12*('System Config'!C$7/'DDR3 Config'!C$15)^2*'System Config'!C$8/1000*'DDR3 Config'!C$30 -> 4.623 | L12: mW
A13: Background power used during active power-down | B13: Pds(ACT_PDN) | C13: =+'DDR3 Config'!C24*'DDR3 Config'!C$15 -> 26.775 | D13: mW | F13: Psch(ACT_PDN) | G13: =C13*(1-'System Config'!C16)*'System Config'!C18 -> 5.0203125 | H13: mW | J13: Psys(ACT_PDN) | K13: =+G13*('System Config'!C$7/'DDR3 Config'!C$15)^2*'System Config'!C$8/1000*'DDR3 Config'!C$30 -> 3.417 | L13: mW
A14: Background power used during active standby | B14: Pds(ACT_STBY) | C14: =+'DDR3 Config'!C25*'DDR3 Config'!C$15 -> 67.725 | D14: mW | F14: Psch(ACT_STBY) | G14: =C14*(1-'System Config'!C16)*(1-'System Config'!C18) -> 38.0953125 | H14: mW | J14: Psys(ACT_STBY) | K14: =+G14*('System Config'!C$7/'DDR3 Config'!C$15)^2*'System Config'!C$8/1000*'DDR3 Config'!C$30 -> 25.929 | L14: mW
A15: Background power to complete refreshes | B15: Pds(REF) | C15: =('DDR3 Config'!C28-'DDR3 Config'!C25)*'DDR3 Config'!C34/'DDR3 Config'!C35/1000*'DDR3 Config'!C15 -> 2.820865385 | D15: mW | F15: Psch(REF) | G15: =C15 -> 2.820865385 | H15: mW | J15: Psys(REF) | K15: =+G15*('System Config'!C$7/'DDR3 Config'!C$15)^2 -> 2.558608059 | L15: mW
A16: DRAM power for ACT/PRE commands | B16: Pds(ACT) | C16: =+('DDR3 Config'!C21-('DDR3 Config'!C25*'DDR3 Config'!C33/'DDR3 Config'!C32+'DDR3 Config'!C23*('DDR3 Config'!C32-'DDR3 Config'!C33)/'DDR3 Config'!C32))*'DDR3 Config'!C$15 -> 25.79596442 | D16: mW | F16: Psch(ACT) | G16: =+C16*'DDR3 Config'!C32/'System Config'!C28 -> 71.6226506 | H16: mW | J16: Psys(ACT) | K16: =+G16*('System Config'!C$7/'DDR3 Config'!C$15)^2 -> 64.96385542 | L16: mW
A17: DRAM write power | B17: Pds(WR) | C17: =+('DDR3 Config'!C27-'DDR3 Config'!C$25)*'DDR3 Config'!C$15*8/'System Config'!C9 -> 222.075 | D17: mW | F17: Psch(WR) | G17: =+C17*'System Config'!C23 -> 66.6225 | H17: mW | J17: Psys(WR) | K17: =+G17*('System Config'!C$7/'DDR3 Config'!C$15)^2*'System Config'!C$8/1000*'DDR3 Config'!C$30 -> 45.3456 | L17: mW
A18: DRAM read power | B18: Pds(RD) | C18: =+('DDR3 Config'!C26-'DDR3 Config'!C$25)*'DDR3 Config'!C$15*8/'System Config'!C9 -> 215.775 | D18: mW | F18: Psch(RD) | G18: =+C18*'System Config'!C22 -> 64.7325 | H18: mW | J18: Psys(RD) | K18: =+G18*('System Config'!C$7/'DDR3 Config'!C$15)^2*'System Config'!C$8/1000*'DDR3 Config'!C$30 -> 44.0592 | L18: mW
A19: DQ output power | B19: Pds(DQ) | C19: =+('System Config'!C11*('DDR3 Config'!C$8+'DDR3 Config'!C18)) -> 109.0297726 | D19: mW | F19: Psch(DQ) | G19: =+C19*'System Config'!C22 -> 32.70893178 | H19: mW | J19: Psys(DQ) | K19: =+G19 -> 32.70893178 | L19: mW
A20: Term power for writes | B20: Pds(termW) | C20: =+('System Config'!C12*('DDR3 Config'!C$8+'DDR3 Config'!C$18+'DDR3 Config'!C$19)) -> 453.7226304 | D20: mW | F20: Psch(termW) | G20: =+C20*'System Config'!C23 -> 136.1167891 | H20: mW | J20: Psys(termW) | K20: =+G20 -> 136.1167891 | L20: mW
A21: Term power for reads from another rank | B21: Pds(termRoth) | C21: =+('System Config'!C13*('DDR3 Config'!C$8+'DDR3 Config'!C$18)) -> 593.5718934 | D21: mW | F21: Psch(termRoth) | G21: =+C21*'System Config'!C25 -> 0 | H21: mW | J21: Psys(termRoth) | K21: =+G21 -> 0 | L21: mW
A22: Term power for writes from another rank | B22: Pds(termWoth) | C22: =+('System Config'!C14*('DDR3 Config'!C$8+'DDR3 Config'!C$18+'DDR3 Config'!C$19)) -> 658.794841 | D22: mW | F22: Psch(termWoth) | G22: =+C22*'System Config'!C26 -> 0 | H22: mW | J22: Psys(termWoth) | K22: =+G22 -> 0 | L22: mW
J24: Total DRAM Power Consumed | K24: =SUM(K11:K20) -> 360.7269844 | L24: mW
J25: 2nd rank DRAM Power Consumed | K25: =SUM(K21:K22) -> 0 | L25: mW
A29: VCC | C29: ='System Config'!C7 -> 1.5
A30: FREQ | C30: ='System Config'!C8 -> 800
A32: Device
A33: Density | C33: ='DDR3 Config'!C7 -> 1Gb
A34: IO | C34: ='DDR3 Config'!C8 -> 16
A35: Speed Grade | C35: ='DDR3 Config'!C9 -> -093

Sheet Summary
A5: =CONCATENATE('DDR3 Config'!C7," ",IF('DDR3 Config'!K12=1,"DDR3","DDR3L")," SDRAM with ",'DDR3 Config'!C8," DQs and a ",'DDR3 Config'!C9," Speed Grade") -> 1Gb DDR3 SDRAM with 16 DQs and a -093 Speed Grade
C7: =CONCATENATE(A49," ",A50," ",A51," All parameters are calculated and require no user input.") -> System is operating at 800 MHz clock with VDD = 1.5V. Read bandwidth is 960 MT/s with write bandwidth of 960 MT/s. The DRAM terminates 0 MT/s. ACT commands are separated by 16.6ns on average. All parameters are calculated and require no user input.
B8: Psys Power Consumption Summary
B10: ACT | D10: ='Power Calcs'!K16 -> 64.96385542 | E10: mW | P10: =$B$10 -> ACT | Q10: =$D$10 -> 64.96385542
C11: Total Activate Power | D11: =D10 -> 64.96385542 | E11: mW | P11: =$B$12 -> RD | Q11: =$D$12 -> 44.0592
B12: RD | D12: ='Power Calcs'!K18 -> 44.0592 | E12: mW | P12: =$B$13 -> WR | Q12: =$D$13 -> 45.3456
B13: WR | D13: ='Power Calcs'!K17 -> 45.3456 | E13: mW | P13: =$B$14 -> READ I/O | Q13: =$D$14 -> 32.70893178
B14: READ I/O | D14: ='Power Calcs'!K19 -> 32.70893178 | E14: mW | P14: =$B$15 -> Write ODT | Q14: =$D$15 -> 136.1167891
B15: Write ODT | D15: ='Power Calcs'!K20 -> 136.1167891 | E15: mW | P15: =$B$17 -> ACT_STBY | Q15: =$D$17 -> 25.929
C16: Total RD/WR/Term Power | D16: =+D12+D13+D14+D15 -> 258.2305209 | E16: mW | P16: =$B$18 -> PRE_STBY | Q16: =$D$18 -> 4.623
B17: ACT_STBY | D17: ='Power Calcs'!K14 -> 25.929 | E17: mW | P17: =$B$19 -> ACT_PDN | Q17: =$D$19 -> 3.417
B18: PRE_STBY | D18: ='Power Calcs'!K12 -> 4.623 | E18: mW | P18: =$B$20 -> PRE_PDN | Q18: =$D$20 -> 1.005
B19: ACT_PDN | D19: ='Power Calcs'!K13 -> 3.417 | E19: mW | P19: =$B$21 -> REF | Q19: =$D$21 -> 2.558608059
B20: PRE_PDN | D20: ='Power Calcs'!K11 -> 1.005 | E20: mW | P20: =$B$24 -> TERM 2nd rank | Q20: =$D$24 -> 0
B21: REF | D21: ='Power Calcs'!K15 -> 2.558608059 | E21: mW
C22: Total Background Power | D22: =SUM(D17:D21) -> 37.53260806 | E22: mW
B23: Total DDR3 SDRAM Power | D23: =+D16+D11+D22 -> 360.7269844 | E23: mW
B24: TERM 2nd rank | D24: =+'Power Calcs'!K21+'Power Calcs'!K22 -> 0 | E24: mW
A49: =CONCATENATE("System is operating at ",'System Config'!C8," MHz clock with VDD = ",'System Config'!C7,"V.") -> System is operating at 800 MHz clock with VDD = 1.5V.
A50: =CONCATENATE("Read bandwidth is ",B52," MT/s with write bandwidth of ",B53," MT/s. The DRAM terminates ",B54," MT/s.") -> Read bandwidth is 960 MT/s with write bandwidth of 960 MT/s. The DRAM terminates 0 MT/s.
A51: =CONCATENATE("ACT commands are separated by ",'System Config'!C28,"ns on average.") -> ACT commands are separated by 16.6ns on average.
B52: =INT('System Config'!C8*'System Config'!C22*'DDR3 Config'!C8/8*20+0.999)/10 -> 960 | C52: MB/sec
A53: Read Bandwidth | B53: =INT('System Config'!C8*'System Config'!C23*'DDR3 Config'!C8/8*20+0.99)/10 -> 960 | C53: MB/sec
A54: Write Bandwidth | B54: =INT('System Config'!C8*('System Config'!C26+'System Config'!C25)*'DDR3 Config'!C8/8*20+0.99)/10 -> 0 | C54: MB/sec
A55: Term
